T,Company(T),Bvaser(T),Bvasdiv(T),Cipfa2(T),Cipfa3(T),Account,Account(T),Updated,TransNo,Amount,Montype(T),Supplier name,SuppID,Supplier group,TT,Period,Cat1,TC,Text
B,Bromsgrove District Council,Not BVACOP Service,Not BVACOP Sub Division,Current Assets,Stocks,300,Stock Movement,03/12/2012,176801,-135.00,,Brenntag UK Ltd,8751,1,CN,201208,XX611,P1,
B,Bromsgrove District Council,Surpluses/deficits on trading undertakings,Depot Services,Premise Related Expenditure,Energy Costs,B23,Gas,14/11/2012,176961,-867.69,Revenue income and expenditure,West Mercia Supplies,1703,1,CN,201208,DP02,P1,
B,Bromsgrove District Council,Surpluses/deficits on trading undertakings,Depot Services,Premise Related Expenditure,Energy Costs,B23,Gas,14/11/2012,176961,-45.60,Revenue income and expenditure,West Mercia Supplies,1703,1,CN,201208,DP02,P2,
B,Bromsgrove District Council,Cultural and Related Services,Sports Development and community recreation,Supplies and Services,Grants and subscriptions,D71,Grants,21/11/2012,177305,228.00,Revenue income and expenditure,West Mercia Police Authority,1701,5,VN,201208,SD22,P1,
B,Bromsgrove District Council,General Fund Housing Services,Homelessness Administration,Supplies and Services,Communication and computing,D59,Telephones,15/11/2012,177353,66.16,Revenue income and expenditure,British Telecommunications plc,1098,1,VN,201208,HG08,P1,
B,Bromsgrove District Council,Surpluses/deficits on trading undertakings,Internal Business Units and Support Services,Supplies and Services,Communication and computing,D59,Telephones,16/11/2012,177478,110.54,Revenue income and expenditure,Redditch Borough Council,1533,5,VN,201208,IT00,P1,
B,Bromsgrove District Council,Surpluses/deficits on trading undertakings,Internal Business Units and Support Services,Employees,Direct Employee Expenses,A09,Employee expenses,16/11/2012,177478,-8.33,Revenue income and expenditure,Redditch Borough Council,1533,5,VN,201208,IT00,P1,
B,Bromsgrove District Council,Surpluses/deficits on trading undertakings,Internal Business Units and Support Services,Supplies and Services,Communication and computing,D57,Computer - software,16/11/2012,177478,650.00,Revenue income and expenditure,Redditch Borough Council,1533,5,VN,201208,IT10,P1,
B,Bromsgrove District Council,Surpluses/deficits on trading undertakings,Internal Business Units and Support Services,Supplies and Services,Communication and computing,D51,Printing and stationery,16/11/2012,177478,35.97,Revenue income and expenditure,Redditch Borough Council,1533,5,VN,201208,IT00,P1,
B,Bromsgrove District Council,Surpluses/deficits on trading undertakings,Depot Services,Supplies and Services,Communication and computing,D59,Telephones,16/11/2012,177478,94.30,Revenue income and expenditure,Redditch Borough Council,1533,5,VN,201208,BT01,P1,
B,Bromsgrove District Council,Surpluses/deficits on trading undertakings,Internal Business Units and Support Services,Premise Related Expenditure,"Repairs, alterations and maint. of buildings",B03,Internal repair/maint. (reg'd for gross pay't),16/11/2012,177478,"2,367.53",Revenue income and expenditure,Redditch Borough Council,1533,5,VN,201208,IT10,P1,
B,Bromsgrove District Council,Surpluses/deficits on trading undertakings,Internal Business Units and Support Services,Supplies and Services,Communication and computing,D76,WAN links,16/11/2012,177478,"4,200.09",Revenue income and expenditure,Redditch Borough Council,1533,5,VN,201208,IT10,P1,
B,Bromsgrove District Council,Surpluses/deficits on trading undertakings,Internal Business Units and Support Services,Supplies and Services,Communication and computing,D76,WAN links,16/11/2012,177478,180.00,Revenue income and expenditure,Redditch Borough Council,1533,5,VN,201208,IT00,P1,
B,Bromsgrove District Council,Surpluses/deficits on trading undertakings,Internal Business Units and Support Services,Supplies and Services,Communication and computing,D59,Telephones,16/11/2012,177478,320.27,Revenue income and expenditure,Redditch Borough Council,1533,5,VN,201208,IT10,P1,
B,Bromsgrove District Council,Environmental Services,Community Safety (Crime Reduction),Supplies and Services,Communication and computing,D53,Postage/packaging,05/11/2012,177483,8.97,Revenue income and expenditure,Royal Mail Group Plc,1558,1,VN,201208,CS23,P1,
B,Bromsgrove District Council,,,Supplies and Services,Communication and computing,D53,Postage/packaging,05/11/2012,177483,698.25,Revenue income and expenditure,Royal Mail Group Plc,1558,1,VN,201208,RB03,P1,
B,Bromsgrove District Council,Highways and transport services,Off-street Parking,Supplies and Services,Miscellaneous expenses,D99,Workflow only - must change code before saving,05/11/2012,177483,4.68,Revenue income and expenditure,Royal Mail Group Plc,1558,1,VN,201208,CP00,P1,
B,Bromsgrove District Council,,,Supplies and Services,Communication and computing,D53,Postage/packaging,05/11/2012,177483,29.80,Revenue income and expenditure,Royal Mail Group Plc,1558,1,VN,201208,CC01,P1,
B,Bromsgrove District Council,Planning and Development Services,Supplementary planning guidance,Supplies and Services,Communication and computing,D53,Postage/packaging,05/11/2012,177483,0.78,Revenue income and expenditure,Royal Mail Group Plc,1558,1,VN,201208,LP01,P1,
B,Bromsgrove District Council,Surpluses/deficits on trading undertakings,Depot Services,Supplies and Services,Communication and computing,D53,Postage/packaging,05/11/2012,177483,7.80,Revenue income and expenditure,Royal Mail Group Plc,1558,1,VN,201208,DW18,P1,
B,Bromsgrove District Council,Surpluses/deficits on trading undertakings,Depot Services,Transport Related Expenditure,Direct Transport Costs,C01,Vehicle repairs/maint'ce,08/11/2012,177498,343.18,Revenue income and expenditure,Dennis Eagle Ltd,1191,1,VO,201208,DW11,P1,
B,Bromsgrove District Council,,,Supplies and Services,Services,D49,Miscellaneous services,02/11/2012,177507,19.80,Revenue income and expenditure,Rossendales Collect Limited,5739,1,VN,201208,RB10,P1,
B,Bromsgrove District Council,,,Supplies and Services,Communication and computing,D50,Debt Collection Fees,02/11/2012,177533,72.07,Revenue income and expenditure,Bristow & Sutor,1085,1,VN,201208,RB10,P1,
B,Bromsgrove District Council,,,Supplies and Services,Communication and computing,D50,Debt Collection Fees,02/11/2012,177534,47.20,Revenue income and expenditure,Bristow & Sutor,1085,1,VN,201208,RB10,P1,
B,Bromsgrove District Council,,,Supplies and Services,Communication and computing,D50,Debt Collection Fees,02/11/2012,177535,33.61,Revenue income and expenditure,Bristow & Sutor,1085,1,VN,201208,RB10,P1,
B,Bromsgrove District Council,Not BVACOP Service,Not BVACOP Sub Division,Current Assets,Stocks,300,Stock Movement,07/11/2012,177539,-26.75,,Imperial Polythene Products Ltd,9972,1,CN,201208,XX611,P1,
B,Bromsgrove District Council,Surpluses/deficits on trading undertakings,Internal Business Units and Support Services,Supplies and Services,Communication and computing,D51,Printing and stationery,08/11/2012,177577,815.50,Revenue income and expenditure,Brady Corporation Ltd / Seton,10175,2,VO,201208,IT10,P1,
B,Bromsgrove District Council,Surpluses/deficits on trading undertakings,Depot Services,Employees,Direct Employee Expenses,A10,Agency workers,02/11/2012,177581,"1,097.50",Revenue income and expenditure,Matrix SCM Ltd,9043,1,VN,201208,DW14,P1,
B,Bromsgrove District Council,Surpluses/deficits on trading undertakings,Depot Services,Employees,Direct Employee Expenses,A10,Agency workers,02/11/2012,177581,811.82,Revenue income and expenditure,Matrix SCM Ltd,9043,1,VN,201208,DW32,P1,
B,Bromsgrove District Council,Planning and Development Services,Advice,Employees,Direct Employee Expenses,A10,Agency workers,02/11/2012,177581,"2,145.98",Revenue income and expenditure,Matrix SCM Ltd,9043,1,VN,201208,DC00,P1,
B,Bromsgrove District Council,Surpluses/deficits on trading undertakings,Depot Services,Employees,Direct Employee Expenses,A10,Agency workers,02/11/2012,177581,"1,300.77",Revenue income and expenditure,Matrix SCM Ltd,9043,1,VN,201208,DT41,P1,
B,Bromsgrove District Council,Surpluses/deficits on trading undertakings,Depot Services,Employees,Direct Employee Expenses,A10,Agency workers,02/11/2012,177581,"9,107.59",Revenue income and expenditure,Matrix SCM Ltd,9043,1,VN,201208,DW11,P1,
B,Bromsgrove District Council,Surpluses/deficits on trading undertakings,Depot Services,Employees,Direct Employee Expenses,A10,Agency workers,02/11/2012,177581,"3,733.21",Revenue income and expenditure,Matrix SCM Ltd,9043,1,VN,201208,DW21,P1,
B,Bromsgrove District Council,General Fund Housing Services,Housing Strategy,Supplies and Services,Services,D42,Seminar and course fees,08/11/2012,177582,379.17,Revenue income and expenditure,Wychavon District Council,1723,5,VN,201208,HG20,P1,
B,Bromsgrove District Council,Surpluses/deficits on trading undertakings,Internal Business Units and Support Services,Supplies and Services,Communication and computing,D56,Computer - hardware,08/11/2012,177586,358.99,Revenue income and expenditure,Insight Direct (UK) Ltd,1350,1,VO,201208,IT12,P1,
B,Bromsgrove District Council,Not BVACOP Service,Not BVACOP Sub Division,Current Assets,Stocks,300,Stock Movement,07/11/2012,177599,"1,145.85",,Foxall Industrial Supplies Ltd,1857,1,VO,201208,XX611,P1,
B,Bromsgrove District Council,Surpluses/deficits on trading undertakings,Internal Business Units and Support Services,Supplies and Services,Services,D49,Miscellaneous services,13/11/2012,177605,120.00,Revenue income and expenditure,Tom Doyle Photography,5819,1,VO,201208,LS05,P4,
B,Bromsgrove District Council,Surpluses/deficits on trading undertakings,Depot Services,Supplies and Services,"Equipment, furniture and materials",D01,Equipment - purchase,08/11/2012,177607,-50.00,Revenue income and expenditure,Wurth UK Ltd,10087,1,CN,201208,DT41,P1,
B,Bromsgrove District Council,Surpluses/deficits on trading undertakings,Depot Services,Premise Related Expenditure,Energy Costs,B23,Gas,13/11/2012,177612,370.08,Revenue income and expenditure,West Mercia Supplies,1703,1,VN,201208,DP02,P2,
B,Bromsgrove District Council,Surpluses/deficits on trading undertakings,Depot Services,Premise Related Expenditure,Energy Costs,B23,Gas,13/11/2012,177613,651.04,Revenue income and expenditure,West Mercia Supplies,1703,1,VN,201208,DP02,P1,
B,Bromsgrove District Council,Surpluses/deficits on trading undertakings,Internal Business Units and Support Services,Supplies and Services,Communication and computing,D59,Telephones,08/11/2012,177621,54.00,Revenue income and expenditure,Vodafone Ltd (Corporate),1682,1,VN,201208,IT12,P1,
B,Bromsgrove District Council,Cultural and Related Services,Community parks and open spaces,Supplies and Services,Communication and computing,D59,Telephones,08/11/2012,177622,54.00,Revenue income and expenditure,Vodafone Ltd (Corporate),1682,1,VN,201208,RG01,P1,
B,Bromsgrove District Council,Surpluses/deficits on trading undertakings,Internal Business Units and Support Services,Supplies and Services,Communication and computing,D59,Telephones,08/11/2012,177624,54.00,Revenue income and expenditure,Vodafone Ltd (Corporate),1682,1,VN,201208,IT12,P1,
B,Bromsgrove District Council,Corporate and Democratic Core,Corporate Management,Supplies and Services,Communication and computing,D59,Telephones,14/11/2012,177625,54.00,Revenue income and expenditure,Vodafone Ltd (Corporate),1682,1,VN,201208,CM01,P1,
B,Bromsgrove District Council,,,Supplies and Services,Communication and computing,D59,Telephones,14/11/2012,177625,54.00,Revenue income and expenditure,Vodafone Ltd (Corporate),1682,1,VN,201208,CD44,P1,
B,Bromsgrove District Council,,,Supplies and Services,Communication and computing,D59,Telephones,14/11/2012,177625,54.00,Revenue income and expenditure,Vodafone Ltd (Corporate),1682,1,VN,201208,CD37,P1,
B,Bromsgrove District Council,Surpluses/deficits on trading undertakings,Internal Business Units and Support Services,Supplies and Services,Communication and computing,D59,Telephones,14/11/2012,177625,162.00,Revenue income and expenditure,Vodafone Ltd (Corporate),1682,1,VN,201208,IT12,P1,
B,Bromsgrove District Council,Cultural and Related Services,Tree Planting Services,Supplies and Services,Communication and computing,D59,Telephones,14/11/2012,177625,54.00,Revenue income and expenditure,Vodafone Ltd (Corporate),1682,1,VN,201208,TW00,P1,
B,Bromsgrove District Council,,,Supplies and Services,Communication and computing,D59,Telephones,14/11/2012,177625,54.00,Revenue income and expenditure,Vodafone Ltd (Corporate),1682,1,VN,201208,CD34,P1,
B,Bromsgrove District Council,,,Supplies and Services,Communication and computing,D59,Telephones,14/11/2012,177625,54.00,Revenue income and expenditure,Vodafone Ltd (Corporate),1682,1,VN,201208,CD32,P1,
B,Bromsgrove District Council,Cultural and Related Services,Community parks and open spaces,Premise Related Expenditure,Energy Costs,B22,Electricity,01/11/2012,177627,16.84,Revenue income and expenditure,Npower Limited,2080,1,VN,201208,RG01,P1,
B,Bromsgrove District Council,Surpluses/deficits on trading undertakings,Internal Business Units and Support Services,Premise Related Expenditure,Energy Costs,B22,Electricity,05/11/2012,177628,"2,592.68",Revenue income and expenditure,Npower Limited,2080,1,VN,201208,ES20,P1,
B,Bromsgrove District Council,,,Premise Related Expenditure,Energy Costs,B22,Electricity,05/11/2012,177629,11.17,Revenue income and expenditure,Npower Limited,2080,1,VN,201208,MH04,P1,
B,Bromsgrove District Council,,,Premise Related Expenditure,Energy Costs,B22,Electricity,05/11/2012,177630,18.49,Revenue income and expenditure,Npower Limited,2080,1,VN,201208,MH04,P2,
B,Bromsgrove District Council,,,Premise Related Expenditure,Energy Costs,B22,Electricity,05/11/2012,177631,12.36,Revenue income and expenditure,Npower Limited,2080,1,VN,201208,MH04,P2,
B,Bromsgrove District Council,Surpluses/deficits on trading undertakings,Internal Business Units and Support Services,Premise Related Expenditure,Energy Costs,B22,Electricity,05/11/2012,177632,19.88,Revenue income and expenditure,Npower Limited,2080,1,VN,201208,ES20,P2,
B,Bromsgrove District Council,Cultural and Related Services,Museums and Gallaries,Premise Related Expenditure,Energy Costs,B22,Electricity,05/11/2012,177633,32.98,Revenue income and expenditure,Npower Limited,2080,1,VN,201208,MT91,P2,
B,Bromsgrove District Council,Surpluses/deficits on trading undertakings,Internal Business Units and Support Services,Premise Related Expenditure,Energy Costs,B22,Electricity,05/11/2012,177635,"1,730.64",Revenue income and expenditure,Npower Limited,2080,1,VN,201208,ES20,P1,
B,Bromsgrove District Council,Surpluses/deficits on trading undertakings,Internal Business Units and Support Services,Supplies and Services,Services,D47,Consultants' fees,05/11/2012,177642,516.00,Revenue income and expenditure,Bevan Brittan LLP,5549,1,VN,201208,LS00,P1,
B,Bromsgrove District Council,,,Supplies and Services,Communication and computing,D53,Postage/packaging,01/11/2012,177650,283.33,Revenue income and expenditure,Royal Mail Group Plc,1558,1,VN,201208,CC01,P1,
B,Bromsgrove District Council,Environmental Services,Cemeteries,Supplies and Services,Miscellaneous expenses,D99,Workflow only - must change code before saving,06/11/2012,177652,22.31,Revenue income and expenditure,Severn Trent Water Ltd,2416,1,VN,201208,CE01,P4,
B,Bromsgrove District Council,Surpluses/deficits on trading undertakings,Internal Business Units and Support Services,Supplies and Services,Communication and computing,D56,Computer - hardware,08/11/2012,177659,358.99,Revenue income and expenditure,Insight Direct (UK) Ltd,1350,1,VO,201208,IT12,P1,
B,Bromsgrove District Council,Not BVACOP Service,Not BVACOP Sub Division,Current Assets,Stocks,300,Stock Movement,07/11/2012,177665,"2,064.00",,Imperial Polythene Products Ltd,9972,1,VO,201208,XX611,P1,
B,Bromsgrove District Council,Planning and Development Services,Advice,Supplies and Services,Services,D47,Consultants' fees,01/11/2012,177673,175.40,Revenue income and expenditure,Joe Holyoak,6045,1,VP,201208,DC00,P4,
B,Bromsgrove District Council,Planning and Development Services,Advice,Supplies and Services,Services,D47,Consultants' fees,01/11/2012,177674,110.00,Revenue income and expenditure,Joe Holyoak,6045,1,VP,201208,DC00,P4,
B,Bromsgrove District Council,Not BVACOP Service,Not BVACOP Sub Division,Current Assets,Stocks,300,Stock Movement,22/11/2012,177679,422.81,,Imperial Commercials Ltd.,1403,1,VO,201208,XX611,P1,
B,Bromsgrove District Council,Surpluses/deficits on trading undertakings,Internal Business Units and Support Services,Supplies and Services,Communication and computing,D57,Computer - software,02/11/2012,177683,"1,618.00",Revenue income and expenditure,Oracle Corporation UK Ltd.,9231,3,VO,201208,IT12,P1,
B,Bromsgrove District Council,Environmental Services,Recycling,Supplies and Services,Services,D48,Contractors' fees/charges/SLA's,08/11/2012,177685,757.85,Revenue income and expenditure,Waste Away Solutions Ltd,1374,1,VO,201208,EH06,P1,
B,Bromsgrove District Council,,,Employees,Direct Employee Expenses,A10,Agency workers,01/11/2012,177692,925.00,Revenue income and expenditure,Morgan Hunt UK Ltd,9519,1,VP,201208,RB10,P1,
B,Bromsgrove District Council,Surpluses/deficits on trading undertakings,Internal Business Units and Support Services,Employees,Indirect Employee Expenses,A35,Employers' liability insurance,28/11/2012,177694,"30,483.36",Revenue income and expenditure,Redditch Borough Council,1533,5,VN,201208,ES01,P4,
B,Bromsgrove District Council,Surpluses/deficits on trading undertakings,Depot Services,Employees,Direct Employee Expenses,A10,Agency workers,02/11/2012,177695,"4,541.75",Revenue income and expenditure,Matrix SCM Ltd,9043,1,VN,201208,DW21,P1,
B,Bromsgrove District Council,Surpluses/deficits on trading undertakings,Depot Services,Employees,Direct Employee Expenses,A10,Agency workers,02/11/2012,177695,558.72,Revenue income and expenditure,Matrix SCM Ltd,9043,1,VN,201208,DT41,P1,
B,Bromsgrove District Council,Surpluses/deficits on trading undertakings,Depot Services,Employees,Direct Employee Expenses,A10,Agency workers,02/11/2012,177695,470.03,Revenue income and expenditure,Matrix SCM Ltd,9043,1,VN,201208,DW32,P1,
B,Bromsgrove District Council,Surpluses/deficits on trading undertakings,Depot Services,Employees,Direct Employee Expenses,A10,Agency workers,02/11/2012,177695,"3,276.92",Revenue income and expenditure,Matrix SCM Ltd,9043,1,VN,201208,DW11,P1,
B,Bromsgrove District Council,Surpluses/deficits on trading undertakings,Depot Services,Employees,Direct Employee Expenses,A10,Agency workers,02/11/2012,177695,391.66,Revenue income and expenditure,Matrix SCM Ltd,9043,1,VN,201208,DW14,P1,
B,Bromsgrove District Council,Surpluses/deficits on trading undertakings,Depot Services,Employees,Direct Employee Expenses,A10,Agency workers,02/11/2012,177695,405.89,Revenue income and expenditure,Matrix SCM Ltd,9043,1,VN,201208,DW27,P1,
B,Bromsgrove District Council,Surpluses/deficits on trading undertakings,Depot Services,Employees,Direct Employee Expenses,A10,Agency workers,02/11/2012,177695,608.91,Revenue income and expenditure,Matrix SCM Ltd,9043,1,VN,201208,DP02,P1,
B,Bromsgrove District Council,Surpluses/deficits on trading undertakings,Internal Business Units and Support Services,Supplies and Services,Communication and computing,D76,WAN links,23/11/2012,177696,"2,614.38",Revenue income and expenditure,British Telecommunications plc,1098,1,VN,201208,IT10,P1,
B,Bromsgrove District Council,Surpluses/deficits on trading undertakings,Internal Business Units and Support Services,Supplies and Services,Communication and computing,D76,WAN links,23/11/2012,177696,"2,614.39",Revenue income and expenditure,British Telecommunications plc,1098,1,VN,201208,IT12,P1,
B,Bromsgrove District Council,Surpluses/deficits on trading undertakings,Depot Services,Supplies and Services,Services,D49,Miscellaneous services,08/11/2012,177697,1.20,Revenue income and expenditure,Royal Mail Group Plc,1558,1,VN,201208,DP02,P1,
B,Bromsgrove District Council,,,Supplies and Services,Communication and computing,D53,Postage/packaging,07/11/2012,177698,"1,133.16",Revenue income and expenditure,Royal Mail Group Plc,1558,1,VN,201208,RB03,P1,
B,Bromsgrove District Council,Surpluses/deficits on trading undertakings,Internal Business Units and Support Services,Premise Related Expenditure,Energy Costs,B23,Gas,06/11/2012,177699,"1,118.21",Revenue income and expenditure,West Mercia Supplies,1703,1,VN,201208,ES20,P1,
B,Bromsgrove District Council,Cultural and Related Services,Community parks and open spaces,Supplies and Services,Miscellaneous expenses,D99,Workflow only - must change code before saving,08/11/2012,177700,678.40,Revenue income and expenditure,Severn Trent Water Ltd,2416,1,VN,201208,SP05,P4,
B,Bromsgrove District Council,Environmental Services,Cemeteries,Supplies and Services,Miscellaneous expenses,D99,Workflow only - must change code before saving,06/11/2012,177701,28.69,Revenue income and expenditure,Severn Trent Water Ltd,2416,1,VN,201208,CE01,P4,
B,Bromsgrove District Council,Environmental Services,Cemeteries,Supplies and Services,Miscellaneous expenses,D99,Workflow only - must change code before saving,06/11/2012,177702,41.64,Revenue income and expenditure,Severn Trent Water Ltd,2416,1,VN,201208,CE01,P4,
B,Bromsgrove District Council,Planning and Development Services,Other Building control work,Third Party Payments,Other Local authorities,E31,Other local authorities,06/11/2012,177704,74.63,Revenue income and expenditure,Wyre Forest District Council,4809,5,VN,201208,BC00,P4,
B,Bromsgrove District Council,Planning and Development Services,Other Building control work,Third Party Payments,Other Local authorities,E31,Other local authorities,06/11/2012,177704,285.77,Revenue income and expenditure,Wyre Forest District Council,4809,5,VN,201208,BC00,P1,
B,Bromsgrove District Council,Environmental Services,Community Safety (Crime Reduction),Third Party Payments,Other Local authorities,E31,Other local authorities,08/11/2012,177705,"49,159.79",Revenue income and expenditure,Redditch Borough Council,1533,5,VN,201208,CS23,P1,
B,Bromsgrove District Council,Environmental Services,Community Safety (Crime Reduction),Third Party Payments,Other Local authorities,E31,Other local authorities,08/11/2012,177705,"21,157.08",Revenue income and expenditure,Redditch Borough Council,1533,5,VN,201208,CS22,P1,
B,Bromsgrove District Council,Central Services to the Public,Local Land Charges,Third Party Payments,Other Local authorities,E31,Other local authorities,08/11/2012,177705,"5,500.05",Revenue income and expenditure,Redditch Borough Council,1533,5,VN,201208,LC00,P1,
B,Bromsgrove District Council,,,Supplies and Services,Communication and computing,D57,Computer - software,08/11/2012,177710,"1,050.00",Revenue income and expenditure,Capita Business Services Ltd,1107,1,VO,201208,RB03,P1,
B,Bromsgrove District Council,Surpluses/deficits on trading undertakings,Depot Services,Transport Related Expenditure,Contract Hire and operating leases,C31,Contract hire of vehicles,08/11/2012,177711,"1,235.00",Revenue income and expenditure,Priority Hire Ltd,9764,1,VO,201208,DW11,P1,
B,Bromsgrove District Council,Environmental Services,,Supplies and Services,Services,D48,Contractors' fees/charges/SLA's,27/11/2012,177713,"2,000.00",Revenue income and expenditure,SKM Enviros,9301,1,VO,201208,YA39,P1,
B,Bromsgrove District Council,Not BVACOP Service,Not BVACOP Sub Division,Current Assets,Stocks,300,Stock Movement,08/11/2012,177714,86.40,,Focal Image,1252,1,VO,201208,XX611,P1,
B,Bromsgrove District Council,Surpluses/deficits on trading undertakings,Depot Services,Supplies and Services,"Clothes, uniform and laundry",D31,Clothing and uniforms,08/11/2012,177715,45.50,Revenue income and expenditure,Focal Image,1252,1,VO,201208,DW21,P4,
B,Bromsgrove District Council,Central Services to the Public,Registration of Electors,Supplies and Services,Services,D43,Training fees,08/11/2012,177719,25.00,Revenue income and expenditure,Association of Electoral Administrators,5625,1,VO,201208,EL00,P1,
B,Bromsgrove District Council,Surpluses/deficits on trading undertakings,Internal Business Units and Support Services,Supplies and Services,Communication and computing,D57,Computer - software,08/11/2012,177720,"18,260.00",Revenue income and expenditure,Northgate Information Solutions,1529,1,VO,201208,IT12,P1,
B,Bromsgrove District Council,Planning and Development Services,Advice,Supplies and Services,Communication and computing,D51,Printing and stationery,08/11/2012,177721,229.25,Revenue income and expenditure,Sabell & Co (B'ham) Ltd,1563,1,VO,201208,DC00,P1,
B,Bromsgrove District Council,Surpluses/deficits on trading undertakings,Depot Services,Supplies and Services,"Equipment, furniture and materials",D06,Materials - purchased,08/11/2012,177722,76.00,Revenue income and expenditure,Focal Image,1252,1,VO,201208,DW32,P1,
B,Bromsgrove District Council,Surpluses/deficits on trading undertakings,Depot Services,Supplies and Services,Communication and computing,D53,Postage/packaging,08/11/2012,177723,10.00,Revenue income and expenditure,FAUN Municipal Vehicles Ltd,1455,1,VO,201208,DW11,P1,
B,Bromsgrove District Council,Not BVACOP Service,Not BVACOP Sub Division,Current Assets,Stocks,300,Stock Movement,08/11/2012,177723,586.24,,FAUN Municipal Vehicles Ltd,1455,1,VO,201208,XX611,P1,
B,Bromsgrove District Council,Central Services to the Public,Registration of Electors,Supplies and Services,Communication and computing,D51,Printing and stationery,08/11/2012,177726,11.93,Revenue income and expenditure,Office Depot UK Ltd,6249,1,VO,201208,EL00,P1,
B,Bromsgrove District Council,Not BVACOP Service,Not BVACOP Sub Division,Current Assets,Stocks,300,Stock Movement,08/11/2012,177727,448.00,,Greenham Trading Ltd,1285,1,VO,201208,XX611,P1,
B,Bromsgrove District Council,Surpluses/deficits on trading undertakings,Internal Business Units and Support Services,Supplies and Services,Communication and computing,D52,Books and publications,08/11/2012,177733,67.50,Revenue income and expenditure,Sweet & Maxwell Ltd,1626,1,VO,201208,RS00,P1,
B,Bromsgrove District Council,Surpluses/deficits on trading undertakings,Internal Business Units and Support Services,Supplies and Services,Communication and computing,D52,Books and publications,08/11/2012,177733,67.50,Revenue income and expenditure,Sweet & Maxwell Ltd,1626,1,VO,201208,RS00,P4,
B,Bromsgrove District Council,Surpluses/deficits on trading undertakings,Internal Business Units and Support Services,Premise Related Expenditure,"Repairs, alterations and maint. of buildings",B03,Internal repair/maint. (reg'd for gross pay't),08/11/2012,177736,"8,750.40",Revenue income and expenditure,Fire Safe Services Ltd,10056,1,VO,201208,ES20,P1,
B,Bromsgrove District Council,Surpluses/deficits on trading undertakings,Internal Business Units and Support Services,Supplies and Services,Services,D47,Consultants' fees,08/11/2012,177739,306.90,Revenue income and expenditure,Giant Services Limited,9929,1,VO,201208,IT00,P1,
B,Bromsgrove District Council,Planning and Development Services,Advice,Supplies and Services,Services,D47,Consultants' fees,08/11/2012,177741,"1,776.30",Revenue income and expenditure,Kernon Countryside Consultants,1381,1,VO,201208,DC00,P1,
B,Bromsgrove District Council,,,Supplies and Services,Communication and computing,D50,Debt Collection Fees,08/11/2012,177745,37.99,Revenue income and expenditure,Bristow & Sutor,1085,1,VN,201208,RB10,P1,
B,Bromsgrove District Council,Surpluses/deficits on trading undertakings,Internal Business Units and Support Services,Supplies and Services,Communication and computing,D50,Debt Collection Fees,16/11/2012,177746,11.20,Revenue income and expenditure,Bristow & Sutor,1085,1,VN,201208,FS08,P1,
B,Bromsgrove District Council,Not BVACOP Service,Not BVACOP Sub Division,Current Assets,Stocks,300,Stock Movement,09/11/2012,177747,658.05,,Imperial Polythene Products Ltd,9972,1,VO,201208,XX611,P1,
B,Bromsgrove District Council,Surpluses/deficits on trading undertakings,Depot Services,Transport Related Expenditure,Direct Transport Costs,C01,Vehicle repairs/maint'ce,08/11/2012,177748,244.63,Revenue income and expenditure,Dennis Eagle Ltd,1191,1,VO,201208,DW14,P1,
B,Bromsgrove District Council,Surpluses/deficits on trading undertakings,Depot Services,Transport Related Expenditure,Direct Transport Costs,C01,Vehicle repairs/maint'ce,08/11/2012,177749,51.89,Revenue income and expenditure,Dennis Eagle Ltd,1191,1,VO,201208,DW11,P1,
B,Bromsgrove District Council,Surpluses/deficits on trading undertakings,Depot Services,Transport Related Expenditure,Direct Transport Costs,C01,Vehicle repairs/maint'ce,08/11/2012,177750,"1,233.35",Revenue income and expenditure,Dennis Eagle Ltd,1191,1,VO,201208,DW14,P1,
B,Bromsgrove District Council,Planning and Development Services,Advice,Supplies and Services,Services,D43,Training fees,08/11/2012,177751,313.50,Revenue income and expenditure,Worcestershire County Council,1759,5,VO,201208,DC00,P1,
B,Bromsgrove District Council,Planning and Development Services,Advice,Supplies and Services,Services,D43,Training fees,08/11/2012,177752,296.25,Revenue income and expenditure,Worcestershire County Council,1759,5,VO,201208,DC00,P1,
B,Bromsgrove District Council,Not BVACOP Service,Not BVACOP Sub Division,Capital Expenditure,Operational Land and Buildings,X06,Professional fees,13/11/2012,177753,"2,500.00",Capital income and expenditure,IDOX Software Ltd,6852,1,VO,201208,CAPR,P1,
B,Bromsgrove District Council,Surpluses/deficits on trading undertakings,Internal Business Units and Support Services,Supplies and Services,Services,D42,Seminar and course fees,08/11/2012,177754,150.00,Revenue income and expenditure,Institute of Licensing,3290,1,VO,201208,LS00,P1,
B,Bromsgrove District Council,,,Supplies and Services,Miscellaneous expenses,D88,Miscellaneous expenses,08/11/2012,177757,42.50,Revenue income and expenditure,Bristow & Sutor,1085,1,VO,201208,RB01,P1,
B,Bromsgrove District Council,,,Supplies and Services,Miscellaneous expenses,D88,Miscellaneous expenses,07/11/2012,177764,12.00,Revenue income and expenditure,Brighton & Hove City Council,2203,5,VO,201208,RB02,P4,
B,Bromsgrove District Council,,,Supplies and Services,Miscellaneous expenses,D88,Miscellaneous expenses,07/11/2012,177764,37.80,Revenue income and expenditure,Brighton & Hove City Council,2203,5,VO,201208,RB02,P1,
B,Bromsgrove District Council,Planning and Development Services,Other Building control work,Supplies and Services,Communication and computing,D55,Computer - general costs,20/11/2012,177767,"3,832.00",Revenue income and expenditure,IHS (Global) Ltd,6652,1,VN,201208,BC00,P1,
B,Bromsgrove District Council,Surpluses/deficits on trading undertakings,Depot Services,Supplies and Services,Communication and computing,D53,Postage/packaging,09/11/2012,177768,"1,258.00",Revenue income and expenditure,Neopost Finance Ltd,6103,1,VN,201208,CD20,P1,
B,Bromsgrove District Council,Surpluses/deficits on trading undertakings,Depot Services,Supplies and Services,Communication and computing,D53,Postage/packaging,09/11/2012,177769,"1,258.00",Revenue income and expenditure,Neopost Finance Ltd,6103,1,VN,201208,CD20,P1,
B,Bromsgrove District Council,Surpluses/deficits on trading undertakings,Depot Services,Supplies and Services,Communication and computing,D53,Postage/packaging,09/11/2012,177770,"1,258.00",Revenue income and expenditure,Neopost Finance Ltd,6103,1,VN,201208,CD20,P1,
B,Bromsgrove District Council,Surpluses/deficits on trading undertakings,Internal Business Units and Support Services,Supplies and Services,Communication and computing,D52,Books and publications,15/11/2012,177771,558.35,Revenue income and expenditure,Redditch Borough Council,1533,5,VN,201208,LS00,P1,
B,Bromsgrove District Council,Surpluses/deficits on trading undertakings,Internal Business Units and Support Services,Supplies and Services,Expenses,D61,Subsistence expenses,15/11/2012,177771,7.80,Revenue income and expenditure,Redditch Borough Council,1533,5,VN,201208,LS00,P1,
B,Bromsgrove District Council,Surpluses/deficits on trading undertakings,Internal Business Units and Support Services,Transport Related Expenditure,Car Allowances,C61,Car allowances (incl. associated NHI),15/11/2012,177771,6.50,Revenue income and expenditure,Redditch Borough Council,1533,5,VN,201208,LS00,P1,
B,Bromsgrove District Council,Surpluses/deficits on trading undertakings,Internal Business Units and Support Services,Supplies and Services,Services,D43,Training fees,15/11/2012,177771,19.50,Revenue income and expenditure,Redditch Borough Council,1533,5,VN,201208,LS00,P1,
B,Bromsgrove District Council,Corporate and Democratic Core,Corporate Management,Transport Related Expenditure,Public Transport,C44,Public transport,15/11/2012,177771,11.00,Revenue income and expenditure,Redditch Borough Council,1533,5,VN,201208,CS00,P1,
B,Bromsgrove District Council,Surpluses/deficits on trading undertakings,Internal Business Units and Support Services,Supplies and Services,Communication and computing,D57,Computer - software,15/11/2012,177771,"1,257.02",Revenue income and expenditure,Redditch Borough Council,1533,5,VN,201208,LS00,P1,
B,Bromsgrove District Council,Corporate and Democratic Core,Corporate Management,Supplies and Services,Communication and computing,D51,Printing and stationery,15/11/2012,177771,189.76,Revenue income and expenditure,Redditch Borough Council,1533,5,VN,201208,CS00,P1,
B,Bromsgrove District Council,Corporate and Democratic Core,Corporate Management,Supplies and Services,Communication and computing,D55,Computer - general costs,15/11/2012,177771,90.81,Revenue income and expenditure,Redditch Borough Council,1533,5,VN,201208,CS00,P1,
B,Bromsgrove District Council,Surpluses/deficits on trading undertakings,Internal Business Units and Support Services,Employees,Direct Employee Expenses,A10,Agency workers,15/11/2012,177771,"17,893.74",Revenue income and expenditure,Redditch Borough Council,1533,5,VN,201208,LS00,P1,
B,Bromsgrove District Council,Surpluses/deficits on trading undertakings,Internal Business Units and Support Services,Supplies and Services,Communication and computing,D53,Postage/packaging,15/11/2012,177771,"1,092.58",Revenue income and expenditure,Redditch Borough Council,1533,5,VN,201208,LS00,P1,
B,Bromsgrove District Council,Surpluses/deficits on trading undertakings,Internal Business Units and Support Services,Supplies and Services,Services,D47,Consultants' fees,15/11/2012,177771,"1,321.20",Revenue income and expenditure,Redditch Borough Council,1533,5,VN,201208,LS00,P1,
B,Bromsgrove District Council,Corporate and Democratic Core,Corporate Management,Supplies and Services,Communication and computing,D52,Books and publications,15/11/2012,177771,227.95,Revenue income and expenditure,Redditch Borough Council,1533,5,VN,201208,CS00,P1,
B,Bromsgrove District Council,Surpluses/deficits on trading undertakings,Internal Business Units and Support Services,Supplies and Services,Communication and computing,D51,Printing and stationery,15/11/2012,177771,3.44,Revenue income and expenditure,Redditch Borough Council,1533,5,VN,201208,LS00,P1,
B,Bromsgrove District Council,Corporate and Democratic Core,Corporate Management,Supplies and Services,Miscellaneous expenses,D88,Miscellaneous expenses,15/11/2012,177771,6.40,Revenue income and expenditure,Redditch Borough Council,1533,5,VN,201208,CS00,P1,
B,Bromsgrove District Council,Environmental Services,Public Toilets,Premise Related Expenditure,Water Services,B51,Water charges,08/11/2012,177772,851.06,Revenue income and expenditure,Severn Trent Water Ltd,2416,1,VN,201208,PC01,P4,
B,Bromsgrove District Council,Cultural and Related Services,Allotments,Supplies and Services,Miscellaneous expenses,D99,Workflow only - must change code before saving,12/11/2012,177774,27.39,Revenue income and expenditure,Severn Trent Water Ltd,2416,1,VN,201208,AL01,P4,
B,Bromsgrove District Council,Planning and Development Services,Advice,Third Party Payments,Other Local authorities,E31,Other local authorities,09/11/2012,177775,185.02,Revenue income and expenditure,Redditch Borough Council,1533,5,VN,201208,DC00,P1,
B,Bromsgrove District Council,,,Third Party Payments,Other Local authorities,E31,Other local authorities,19/11/2012,177776,"3,100.87",Revenue income and expenditure,Redditch Borough Council,1533,5,VN,201208,CC03,P1,
B,Bromsgrove District Council,,,Third Party Payments,Other Local authorities,E31,Other local authorities,19/11/2012,177776,"16,013.15",Revenue income and expenditure,Redditch Borough Council,1533,5,VN,201208,CC01,P1,
B,Bromsgrove District Council,Surpluses/deficits on trading undertakings,Internal Business Units and Support Services,Supplies and Services,Communication and computing,D51,Printing and stationery,20/11/2012,177778,737.07,Revenue income and expenditure,Ricoh UK Ltd,6528,1,VN,201208,PS01,P1,
B,Bromsgrove District Council,Surpluses/deficits on trading undertakings,Depot Services,Employees,Direct Employee Expenses,A10,Agency workers,22/11/2012,177779,589.68,Revenue income and expenditure,Matrix SCM Ltd,9043,1,VN,201208,DW21,P1,
B,Bromsgrove District Council,Surpluses/deficits on trading undertakings,Depot Services,Employees,Direct Employee Expenses,A10,Agency workers,22/11/2012,177779,"4,311.89",Revenue income and expenditure,Matrix SCM Ltd,9043,1,VN,201208,DW11,P1,
B,Bromsgrove District Council,Planning and Development Services,Advice,Employees,Direct Employee Expenses,A10,Agency workers,22/11/2012,177779,"1,455.96",Revenue income and expenditure,Matrix SCM Ltd,9043,1,VN,201208,DC00,P1,
B,Bromsgrove District Council,Surpluses/deficits on trading undertakings,Depot Services,Employees,Direct Employee Expenses,A10,Agency workers,22/11/2012,177779,66.26,Revenue income and expenditure,Matrix SCM Ltd,9043,1,VN,201208,DP02,P1,
B,Bromsgrove District Council,Surpluses/deficits on trading undertakings,Depot Services,Employees,Direct Employee Expenses,A10,Agency workers,22/11/2012,177779,130.95,Revenue income and expenditure,Matrix SCM Ltd,9043,1,VN,201208,DT41,P1,
B,Bromsgrove District Council,Surpluses/deficits on trading undertakings,Depot Services,Employees,Direct Employee Expenses,A10,Agency workers,22/11/2012,177779,391.66,Revenue income and expenditure,Matrix SCM Ltd,9043,1,VN,201208,DW14,P1,
B,Bromsgrove District Council,Surpluses/deficits on trading undertakings,Depot Services,Employees,Direct Employee Expenses,A10,Agency workers,22/11/2012,177779,89.98,Revenue income and expenditure,Matrix SCM Ltd,9043,1,VN,201208,DS61,P1,
B,Bromsgrove District Council,Surpluses/deficits on trading undertakings,Depot Services,Employees,Direct Employee Expenses,A10,Agency workers,22/11/2012,177779,534.15,Revenue income and expenditure,Matrix SCM Ltd,9043,1,VN,201208,DW32,P1,
B,Bromsgrove District Council,Not BVACOP Service,Not BVACOP Sub Division,Current Assets,Stocks,300,Stock Movement,08/11/2012,177781,693.81,,Dennis Eagle Ltd,1191,1,VO,201208,XX611,P1,
B,Bromsgrove District Council,Surpluses/deficits on trading undertakings,Internal Business Units and Support Services,Supplies and Services,Communication and computing,D51,Printing and stationery,08/11/2012,177783,26.84,Revenue income and expenditure,Office Depot UK Ltd,6249,1,VO,201208,FS08,P1,
B,Bromsgrove District Council,Surpluses/deficits on trading undertakings,Depot Services,Supplies and Services,"Equipment, furniture and materials",D06,Materials - purchased,08/11/2012,177784,69.93,Revenue income and expenditure,Air Liquide Limited,1407,1,VO,201208,DT41,P1,
B,Bromsgrove District Council,Surpluses/deficits on trading undertakings,Internal Business Units and Support Services,Premise Related Expenditure,Fixtures and Fittings,B63,Internal fixtures/fittings - maint'ce,08/11/2012,177785,934.00,Revenue income and expenditure,Locke & Eastwood,1409,2,VO,201208,ES20,P1,
B,Bromsgrove District Council,,,Premise Related Expenditure,Cleaning and domestic supplies,B80,Contract cleaning,08/11/2012,177789,417.08,Revenue income and expenditure,We Clean Ltd,2966,1,VO,201208,CC01,P1,
B,Bromsgrove District Council,Not BVACOP Service,Not BVACOP Sub Division,Current Assets,Stocks,300,Stock Movement,08/11/2012,177791,72.54,,Arrow County Supplies,10161,1,VO,201208,XX611,P1,
B,Bromsgrove District Council,Surpluses/deficits on trading undertakings,Depot Services,Supplies and Services,"Equipment, furniture and materials",D06,Materials - purchased,08/11/2012,177792,198.75,Revenue income and expenditure,Teccon Limited,4458,1,VO,201208,DW32,P1,
B,Bromsgrove District Council,Surpluses/deficits on trading undertakings,Depot Services,Supplies and Services,Communication and computing,D53,Postage/packaging,08/11/2012,177793,12.00,Revenue income and expenditure,Mitchell Diesel Ltd,1445,1,VP,201208,DW11,P1,
B,Bromsgrove District Council,Surpluses/deficits on trading undertakings,Depot Services,Transport Related Expenditure,Direct Transport Costs,C01,Vehicle repairs/maint'ce,08/11/2012,177793,530.62,Revenue income and expenditure,Mitchell Diesel Ltd,1445,1,VP,201208,DW11,P1,
B,Bromsgrove District Council,Environmental Services,Recycling,Supplies and Services,Services,D48,Contractors' fees/charges/SLA's,08/11/2012,177794,25.48,Revenue income and expenditure,Smurfit Kappa Recycling,1375,1,VP,201208,EH06,P1,
B,Bromsgrove District Council,Not BVACOP Service,Not BVACOP Sub Division,Current Assets,Stocks,300,Stock Movement,08/11/2012,177796,172.96,,Jewson Ltd,2109,1,VO,201208,XX611,P1,
B,Bromsgrove District Council,Surpluses/deficits on trading undertakings,Depot Services,Supplies and Services,"Equipment, furniture and materials",D06,Materials - purchased,08/11/2012,177797,32.50,Revenue income and expenditure,Jewson Ltd,2109,1,VO,201208,DP02,P1,
B,Bromsgrove District Council,Surpluses/deficits on trading undertakings,Depot Services,Transport Related Expenditure,Contract Hire and operating leases,C31,Contract hire of vehicles,08/11/2012,177798,509.22,Revenue income and expenditure,Northgate Vehicle Hire (West Midlands) Ltd,8773,1,VO,201208,DW21,P1,
B,Bromsgrove District Council,Surpluses/deficits on trading undertakings,Depot Services,Transport Related Expenditure,Direct Transport Costs,C01,Vehicle repairs/maint'ce,08/11/2012,177799,73.77,Revenue income and expenditure,Guest Trucks,7762,1,VO,201208,DW21,P1,
B,Bromsgrove District Council,Not BVACOP Service,Not BVACOP Sub Division,Current Assets,Stocks,300,Stock Movement,08/11/2012,177800,112.47,,Wurth UK Ltd,10087,1,VO,201208,XX611,P1,
B,Bromsgrove District Council,Surpluses/deficits on trading undertakings,Depot Services,Supplies and Services,"Equipment, furniture and materials",D06,Materials - purchased,08/11/2012,177800,95.98,Revenue income and expenditure,Wurth UK Ltd,10087,1,VO,201208,DT41,P1,
B,Bromsgrove District Council,Surpluses/deficits on trading undertakings,Depot Services,Supplies and Services,"Equipment, furniture and materials",D01,Equipment - purchase,08/11/2012,177800,50.00,Revenue income and expenditure,Wurth UK Ltd,10087,1,VO,201208,DT41,P1,
B,Bromsgrove District Council,Surpluses/deficits on trading undertakings,Depot Services,Transport Related Expenditure,Direct Transport Costs,C01,Vehicle repairs/maint'ce,08/11/2012,177802,280.00,Revenue income and expenditure,Clarkson Autoradiators Ltd,10035,1,VO,201208,DW11,P1,
B,Bromsgrove District Council,Surpluses/deficits on trading undertakings,Depot Services,Transport Related Expenditure,Direct Transport Costs,C01,Vehicle repairs/maint'ce,08/11/2012,177803,68.50,Revenue income and expenditure,Clarkson Autoradiators Ltd,10035,1,VO,201208,DW11,P1,
B,Bromsgrove District Council,Environmental Services,Cemeteries,Supplies and Services,"Equipment, furniture and materials",D06,Materials - purchased,08/11/2012,177804,261.60,Revenue income and expenditure,Freeflow Concrete,6538,1,VO,201208,CE01,P1,
B,Bromsgrove District Council,Surpluses/deficits on trading undertakings,Depot Services,Supplies and Services,Services,D48,Contractors' fees/charges/SLA's,08/11/2012,177805,"2,750.00",Revenue income and expenditure,Worcestershire County Council,1759,5,VO,201208,DP02,P1,
B,Bromsgrove District Council,Not BVACOP Service,Not BVACOP Sub Division,Current Assets,Stocks,300,Stock Movement,08/11/2012,177806,"28,832.50",,Harvest Energy Ltd,9164,1,VO,201208,XX611,P1,
B,Bromsgrove District Council,Environmental Services,Recycling,Supplies and Services,Services,D48,Contractors' fees/charges/SLA's,08/11/2012,177807,406.63,Revenue income and expenditure,Smurfit Kappa Recycling,1375,1,VO,201208,EH06,P1,
B,Bromsgrove District Council,,,Employees,Direct Employee Expenses,A10,Agency workers,08/11/2012,177808,300.00,Revenue income and expenditure,Morgan Hunt UK Ltd,9519,1,VO,201208,RB10,P1,
B,Bromsgrove District Council,Central Services to the Public,Registration of Electors,Supplies and Services,Communication and computing,D57,Computer - software,08/11/2012,177809,"1,200.00",Revenue income and expenditure,ERS Group Ltd t/a Express Services,9741,1,VO,201208,EL00,P1,
B,Bromsgrove District Council,Cultural and Related Services,Community Centres,Premise Related Expenditure,Fixtures and Fittings,B63,Internal fixtures/fittings - maint'ce,08/11/2012,177810,125.00,Revenue income and expenditure,Bradley Environmental Consultants,1082,1,VO,201208,SS01,P1,
B,Bromsgrove District Council,Surpluses/deficits on trading undertakings,Depot Services,Transport Related Expenditure,Direct Transport Costs,C01,Vehicle repairs/maint'ce,08/11/2012,177811,72.90,Revenue income and expenditure,Scarab Sweepers Ltd,5827,1,VO,201208,DW21,P1,
B,Bromsgrove District Council,Surpluses/deficits on trading undertakings,Internal Business Units and Support Services,Supplies and Services,Miscellaneous expenses,D99,Workflow only - must change code before saving,08/11/2012,177816,770.00,Revenue income and expenditure,Cable & Wireless UK,1103,1,VN,201208,IT12,P1,
B,Bromsgrove District Council,Surpluses/deficits on trading undertakings,Depot Services,Supplies and Services,"Equipment, furniture and materials",D01,Equipment - purchase,13/11/2012,177823,795.00,Revenue income and expenditure,Teccon Limited,4458,1,VO,201208,DW32,P1,
B,Bromsgrove District Council,Highways and transport services,Off-street Parking,Premise Related Expenditure,"Repairs, alterations and maint. of buildings",B03,Internal repair/maint. (reg'd for gross pay't),13/11/2012,177824,276.46,Revenue income and expenditure,Thyssenkrupp Elevator UK Ltd,3658,1,VO,201208,CP01,P1,
B,Bromsgrove District Council,Highways and transport services,Off-street Parking,Supplies and Services,Miscellaneous expenses,D88,Miscellaneous expenses,13/11/2012,177825,"2,069.10",Revenue income and expenditure,Jade Security Services Ltd,7651,1,VO,201208,CP00,P1,
B,Bromsgrove District Council,Environmental Services,Cemeteries,Supplies and Services,Miscellaneous expenses,D88,Miscellaneous expenses,13/11/2012,177826,16.20,Revenue income and expenditure,Mercia Waste Management Ltd,1433,1,VO,201208,CE01,P1,
B,Bromsgrove District Council,Surpluses/deficits on trading undertakings,Depot Services,Supplies and Services,Miscellaneous expenses,D88,Miscellaneous expenses,13/11/2012,177827,81.30,Revenue income and expenditure,Mercia Waste Management Ltd,1433,1,VO,201208,DW32,P1,
B,Bromsgrove District Council,Environmental Services,Cemeteries,Supplies and Services,Miscellaneous expenses,D88,Miscellaneous expenses,13/11/2012,177827,39.00,Revenue income and expenditure,Mercia Waste Management Ltd,1433,1,VO,201208,CE01,P1,
B,Bromsgrove District Council,Not BVACOP Service,Not BVACOP Sub Division,Current Assets,Stocks,300,Stock Movement,13/11/2012,177830,6.66,,Broad Street D.I.Y,1089,1,VO,201208,XX611,P1,
B,Bromsgrove District Council,Environmental Services,Public Toilets,Supplies and Services,"Equipment, furniture and materials",D01,Equipment - purchase,13/11/2012,177831,18.75,Revenue income and expenditure,Broad Street D.I.Y,1089,1,VO,201208,PC03,P1,
B,Bromsgrove District Council,Not BVACOP Service,Not BVACOP Sub Division,Current Assets,Stocks,300,Stock Movement,13/11/2012,177832,23.99,,Broad Street D.I.Y,1089,1,VO,201208,XX611,P1,
B,Bromsgrove District Council,Surpluses/deficits on trading undertakings,Depot Services,Supplies and Services,"Equipment, furniture and materials",D06,Materials - purchased,13/11/2012,177833,12.73,Revenue income and expenditure,Broad Street D.I.Y,1089,1,VO,201208,DW21,P1,
B,Bromsgrove District Council,Surpluses/deficits on trading undertakings,Depot Services,Supplies and Services,"Equipment, furniture and materials",D06,Materials - purchased,13/11/2012,177834,5.99,Revenue income and expenditure,Broad Street D.I.Y,1089,1,VO,201208,DW21,P1,
B,Bromsgrove District Council,Not BVACOP Service,Not BVACOP Sub Division,Current Assets,Stocks,300,Stock Movement,13/11/2012,177835,77.93,,Broad Street D.I.Y,1089,1,VO,201208,XX611,P1,
B,Bromsgrove District Council,Cultural and Related Services,Outdoor sports and recreation facilities,Supplies and Services,"Equipment, furniture and materials",D06,Materials - purchased,13/11/2012,177836,10.31,Revenue income and expenditure,Broad Street D.I.Y,1089,1,VO,201208,PA01,P1,
B,Bromsgrove District Council,Surpluses/deficits on trading undertakings,Internal Business Units and Support Services,Supplies and Services,"Equipment, furniture and materials",D06,Materials - purchased,14/11/2012,177837,42.44,Revenue income and expenditure,Broad Street D.I.Y,1089,1,VO,201208,ES20,P1,
B,Bromsgrove District Council,Not BVACOP Service,Not BVACOP Sub Division,Current Assets,Stocks,300,Stock Movement,13/11/2012,177838,110.91,,Broad Street D.I.Y,1089,1,VO,201208,XX611,P1,
B,Bromsgrove District Council,Surpluses/deficits on trading undertakings,Internal Business Units and Support Services,Supplies and Services,Communication and computing,D56,Computer - hardware,27/11/2012,177839,608.24,Revenue income and expenditure,Insight Direct (UK) Ltd,1350,1,VO,201208,IT12,P1,
B,Bromsgrove District Council,Surpluses/deficits on trading undertakings,Internal Business Units and Support Services,Supplies and Services,Services,D43,Training fees,13/11/2012,177840,220.00,Revenue income and expenditure,Xpress Software Solutions,9821,1,VO,201208,RS00,P1,
B,Bromsgrove District Council,Surpluses/deficits on trading undertakings,Internal Business Units and Support Services,Premise Related Expenditure,Fixtures and Fittings,B63,Internal fixtures/fittings - maint'ce,14/11/2012,177846,690.00,Revenue income and expenditure,Barrie Beard Ltd,1050,2,VO,201208,ES20,P1,
B,Bromsgrove District Council,Planning and Development Services,Advice,Supplies and Services,Miscellaneous expenses,D88,Miscellaneous expenses,13/11/2012,177849,397.00,Revenue income and expenditure,TMP (UK) Ltd,1646,1,VO,201208,DC00,P1,
B,Bromsgrove District Council,,,Supplies and Services,Communication and computing,D51,Printing and stationery,14/11/2012,177852,30.86,Revenue income and expenditure,Office Depot UK Ltd,6249,1,VN,201208,RB03,P1,
B,Bromsgrove District Council,Planning and Development Services,Advice,Supplies and Services,Communication and computing,D51,Printing and stationery,14/11/2012,177852,79.92,Revenue income and expenditure,Office Depot UK Ltd,6249,1,VN,201208,DC00,P1,
B,Bromsgrove District Council,Cultural and Related Services,Allotments,Premise Related Expenditure,Water Services,B51,Water charges,14/11/2012,177854,96.61,Revenue income and expenditure,Severn Trent Water Ltd,2416,1,VN,201208,AL01,P4,
B,Bromsgrove District Council,Surpluses/deficits on trading undertakings,Internal Business Units and Support Services,Premise Related Expenditure,Water Services,B51,Water charges,14/11/2012,177855,"1,696.51",Revenue income and expenditure,Severn Trent Water Ltd,2416,1,VN,201208,ES20,P4,
B,Bromsgrove District Council,Surpluses/deficits on trading undertakings,Depot Services,Supplies and Services,Communication and computing,D53,Postage/packaging,19/11/2012,177856,"3,289.37",Revenue income and expenditure,Royal Mail Group Plc,1558,1,VN,201208,DW18,P1,
B,Bromsgrove District Council,Surpluses/deficits on trading undertakings,Internal Business Units and Support Services,Supplies and Services,Communication and computing,D59,Telephones,14/11/2012,177857,900.00,Revenue income and expenditure,Virgin Media Business,8767,1,VN,201208,IT12,P1,
B,Bromsgrove District Council,Surpluses/deficits on trading undertakings,Internal Business Units and Support Services,Third Party Payments,Other Local authorities,E31,Other local authorities,14/11/2012,177858,"76,413.86",Revenue income and expenditure,Redditch Borough Council,1533,5,VN,201208,FS00,P1,
B,Bromsgrove District Council,Surpluses/deficits on trading undertakings,Internal Business Units and Support Services,Third Party Payments,Other Local authorities,E31,Other local authorities,23/11/2012,177859,"6,715.65",Revenue income and expenditure,Redditch Borough Council,1533,5,VN,201208,FS04,P1,
B,Bromsgrove District Council,,,Supplies and Services,Miscellaneous expenses,D88,Miscellaneous expenses,26/11/2012,177861,-27.00,Revenue income and expenditure,G4S Cash Solutions UK Ltd.,9753,1,CN,201208,CC01,P1,
B,Bromsgrove District Council,Cultural and Related Services,Indoor Sports and Recreation Facilities,Supplies and Services,Services,D47,Consultants' fees,14/11/2012,177885,"3,850.00",Revenue income and expenditure,The Sports Consultancy,10021,1,VO,201208,SC01,P1,
B,Bromsgrove District Council,Central Services to the Public,Registration of Electors,Transport Related Expenditure,Contract Hire and operating leases,C32,Courier and transport services,14/11/2012,177886,18.34,Revenue income and expenditure,Bonds Worldwide Express Limited,5586,1,VO,201208,EL00,P1,
B,Bromsgrove District Council,Central Services to the Public,Registration of Electors,Transport Related Expenditure,Contract Hire and operating leases,C32,Courier and transport services,14/11/2012,177887,40.08,Revenue income and expenditure,Bonds Worldwide Express Limited,5586,1,VO,201208,EL00,P1,
B,Bromsgrove District Council,Environmental Services,Cemeteries,Supplies and Services,"Equipment, furniture and materials",D01,Equipment - purchase,15/11/2012,177889,58.00,Revenue income and expenditure,Steel & Stone,10016,1,VO,201208,CE01,P1,
B,Bromsgrove District Council,Surpluses/deficits on trading undertakings,Internal Business Units and Support Services,Supplies and Services,Communication and computing,D57,Computer - software,27/11/2012,177890,500.00,Revenue income and expenditure,Northgate Information Solutions,1529,1,VO,201208,IT12,P1,
B,Bromsgrove District Council,Not BVACOP Service,Not BVACOP Sub Division,Current Assets,Stocks,300,Stock Movement,14/11/2012,177891,480.00,,Greenham Trading Ltd,1285,1,VO,201208,XX611,P1,
B,Bromsgrove District Council,Not BVACOP Service,Not BVACOP Sub Division,Current Assets,Stocks,300,Stock Movement,14/11/2012,177892,421.17,,Guest Trucks,7762,1,VO,201208,XX611,P1,
B,Bromsgrove District Council,Surpluses/deficits on trading undertakings,Depot Services,Transport Related Expenditure,Direct Transport Costs,C01,Vehicle repairs/maint'ce,14/11/2012,177893,250.12,Revenue income and expenditure,Guest Trucks,7762,1,VO,201208,DW21,P1,
B,Bromsgrove District Council,Surpluses/deficits on trading undertakings,Depot Services,Transport Related Expenditure,Direct Transport Costs,C01,Vehicle repairs/maint'ce,14/11/2012,177894,42.07,Revenue income and expenditure,Guest Trucks,7762,1,VO,201208,DW32,P1,
B,Bromsgrove District Council,,,Supplies and Services,Communication and computing,D51,Printing and stationery,21/11/2012,177895,"2,000.00",Revenue income and expenditure,Worcestershire County Council,1759,5,VO,201208,RB01,P1,
B,Bromsgrove District Council,Surpluses/deficits on trading undertakings,Internal Business Units and Support Services,Supplies and Services,Communication and computing,D57,Computer - software,28/11/2012,177897,"1,000.00",Revenue income and expenditure,Northgate Information Solutions,1529,1,VO,201208,IT12,P1,
B,Bromsgrove District Council,Surpluses/deficits on trading undertakings,Depot Services,Transport Related Expenditure,Direct Transport Costs,C01,Vehicle repairs/maint'ce,29/11/2012,177898,36.00,Revenue income and expenditure,WasteParts UK Ltd,6508,1,VO,201208,DW11,P1,
B,Bromsgrove District Council,Surpluses/deficits on trading undertakings,Depot Services,Supplies and Services,Communication and computing,D53,Postage/packaging,29/11/2012,177898,8.00,Revenue income and expenditure,WasteParts UK Ltd,6508,1,VO,201208,DW11,P1,
B,Bromsgrove District Council,Surpluses/deficits on trading undertakings,Internal Business Units and Support Services,Supplies and Services,Services,D47,Consultants' fees,14/11/2012,177899,306.90,Revenue income and expenditure,Giant Services Limited,9929,1,VO,201208,IT00,P1,
B,Bromsgrove District Council,Cultural and Related Services,Sports Development and community recreation,Supplies and Services,"Equipment, furniture and materials",D06,Materials - purchased,14/11/2012,177901,195.00,Revenue income and expenditure,Jewson Ltd,2109,1,VO,201208,SD22,P1,
B,Bromsgrove District Council,Not BVACOP Service,Not BVACOP Sub Division,Current Assets,Stocks,300,Stock Movement,14/11/2012,177902,90.24,,Jewson Ltd,2109,1,VO,201208,XX611,P1,
B,Bromsgrove District Council,Not BVACOP Service,Not BVACOP Sub Division,Current Assets,Stocks,300,Stock Movement,14/11/2012,177904,157.75,,Chris Tallis Farm Machinery Ltd,10074,1,VO,201208,XX611,P1,
B,Bromsgrove District Council,Not BVACOP Service,Not BVACOP Sub Division,Current Assets,Stocks,300,Stock Movement,14/11/2012,177905,58.16,,Chris Tallis Farm Machinery Ltd,10074,1,VO,201208,XX611,P1,
B,Bromsgrove District Council,,,Transport Related Expenditure,Contract Hire and operating leases,C32,Courier and transport services,15/11/2012,177907,230.00,Revenue income and expenditure,Harris Coaches (Bromsgrove) Ltd,1300,1,VO,201208,CD61,P4,
B,Bromsgrove District Council,,,Supplies and Services,Communication and computing,D51,Printing and stationery,14/11/2012,177910,108.38,Revenue income and expenditure,Office Depot UK Ltd,6249,1,VO,201208,CC01,P1,
B,Bromsgrove District Council,,,Supplies and Services,"Equipment, furniture and materials",D03,Equipment - rental/lease,14/11/2012,177911,25.20,Revenue income and expenditure,Angel Springs Ltd,8009,1,VO,201208,CC01,P1,
B,Bromsgrove District Council,Not BVACOP Service,Not BVACOP Sub Division,Current Assets,Stocks,300,Stock Movement,14/11/2012,177914,338.14,,PCS Jangro,7294,1,VO,201208,XX611,P1,
B,Bromsgrove District Council,Surpluses/deficits on trading undertakings,Depot Services,Transport Related Expenditure,Direct Transport Costs,C01,Vehicle repairs/maint'ce,14/11/2012,177915,"1,949.55",Revenue income and expenditure,Walker & Co Hydraulic Services Ltd,10204,1,VO,201208,DW21,P1,
B,Bromsgrove District Council,Environmental Services,Cemeteries,Transport Related Expenditure,Direct Transport Costs,C04,Petrol,14/11/2012,177916,177.77,Revenue income and expenditure,Phoenix Service Stations Ltd,6831,1,VO,201208,CE01,P1,
B,Bromsgrove District Council,Surpluses/deficits on trading undertakings,Depot Services,Transport Related Expenditure,Direct Transport Costs,C04,Petrol,14/11/2012,177916,977.10,Revenue income and expenditure,Phoenix Service Stations Ltd,6831,1,VO,201208,DW21,P1,
B,Bromsgrove District Council,Surpluses/deficits on trading undertakings,Internal Business Units and Support Services,Premise Related Expenditure,Fixtures and Fittings,B63,Internal fixtures/fittings - maint'ce,14/11/2012,177918,"7,000.00",Revenue income and expenditure,G.S. Adams Limited,5337,2,VO,201208,ES20,P1,
B,Bromsgrove District Council,Environmental Services,Recycling,Supplies and Services,Services,D48,Contractors' fees/charges/SLA's,14/11/2012,177920,95.75,Revenue income and expenditure,Berryman,3621,1,VO,201208,EH06,P1,
B,Bromsgrove District Council,Surpluses/deficits on trading undertakings,Internal Business Units and Support Services,Premise Related Expenditure,Energy Costs,B23,Gas,14/11/2012,177922,"1,116.33",Revenue income and expenditure,West Mercia Supplies,1703,1,VN,201208,ES20,P1,
B,Bromsgrove District Council,Central Services to the Public,Registration of Electors,Transport Related Expenditure,Contract Hire and operating leases,C32,Courier and transport services,14/11/2012,177923,18.34,Revenue income and expenditure,Bonds Worldwide Express Limited,5586,1,VN,201208,EL00,P1,
B,Bromsgrove District Council,Central Services to the Public,Registration of Electors,Transport Related Expenditure,Contract Hire and operating leases,C32,Courier and transport services,14/11/2012,177924,36.69,Revenue income and expenditure,Bonds Worldwide Express Limited,5586,1,VN,201208,EL00,P1,
B,Bromsgrove District Council,Surpluses/deficits on trading undertakings,Internal Business Units and Support Services,Premise Related Expenditure,Energy Costs,B23,Gas,14/11/2012,177925,"-1,118.21",Revenue income and expenditure,West Mercia Supplies,1703,1,CN,201208,ES20,P1,
B,Bromsgrove District Council,Corporate and Democratic Core,Corporate Management,Supplies and Services,Services,D49,Miscellaneous services,14/11/2012,177926,"3,660.00",Revenue income and expenditure,Audit Commission,3267,1,VN,201208,CM01,P1,
B,Bromsgrove District Council,,,Supplies and Services,Communication and computing,D51,Printing and stationery,19/11/2012,177934,14.17,Revenue income and expenditure,Office Depot UK Ltd,6249,1,VN,201208,RB03,P1,
B,Bromsgrove District Council,Planning and Development Services,Advice,Supplies and Services,Communication and computing,D51,Printing and stationery,14/11/2012,177935,17.20,Revenue income and expenditure,Office Depot UK Ltd,6249,1,VN,201208,DC00,P1,
B,Bromsgrove District Council,Planning and Development Services,Advice,Supplies and Services,Communication and computing,D51,Printing and stationery,14/11/2012,177936,77.55,Revenue income and expenditure,Office Depot UK Ltd,6249,1,VN,201208,DC00,P1,
B,Bromsgrove District Council,Planning and Development Services,Advice,Supplies and Services,Communication and computing,D51,Printing and stationery,14/11/2012,177937,0.28,Revenue income and expenditure,Office Depot UK Ltd,6249,1,VN,201208,DC00,P1,
B,Bromsgrove District Council,Surpluses/deficits on trading undertakings,Internal Business Units and Support Services,Supplies and Services,Services,D47,Consultants' fees,28/11/2012,177939,150.00,Revenue income and expenditure,Miss Sarah Clover,5893,1,VO,201208,LS00,P1,
B,Bromsgrove District Council,Surpluses/deficits on trading undertakings,Depot Services,Supplies and Services,"Equipment, furniture and materials",D02,Equipment - maintenance,15/11/2012,177940,240.00,Revenue income and expenditure,Pressure Coolers Trading as Maestro International,9070,1,VN,201208,DP02,P1,
B,Bromsgrove District Council,Surpluses/deficits on trading undertakings,Depot Services,Supplies and Services,"Equipment, furniture and materials",D02,Equipment - maintenance,15/11/2012,177941,240.00,Revenue income and expenditure,Pressure Coolers Trading as Maestro International,9070,1,VN,201208,DP02,P1,
B,Bromsgrove District Council,Surpluses/deficits on trading undertakings,Depot Services,Employees,Direct Employee Expenses,A10,Agency workers,22/11/2012,177942,405.91,Revenue income and expenditure,Matrix SCM Ltd,9043,1,VN,201208,DW32,P1,
B,Bromsgrove District Council,Planning and Development Services,Advice,Employees,Direct Employee Expenses,A10,Agency workers,22/11/2012,177942,709.23,Revenue income and expenditure,Matrix SCM Ltd,9043,1,VN,201208,DC00,P1,
B,Bromsgrove District Council,Surpluses/deficits on trading undertakings,Depot Services,Employees,Direct Employee Expenses,A10,Agency workers,22/11/2012,177942,481.79,Revenue income and expenditure,Matrix SCM Ltd,9043,1,VN,201208,DW21,P1,
B,Bromsgrove District Council,Surpluses/deficits on trading undertakings,Depot Services,Employees,Direct Employee Expenses,A10,Agency workers,22/11/2012,177942,"3,189.40",Revenue income and expenditure,Matrix SCM Ltd,9043,1,VN,201208,DW11,P1,
B,Bromsgrove District Council,Surpluses/deficits on trading undertakings,Depot Services,Employees,Direct Employee Expenses,A10,Agency workers,22/11/2012,177942,654.75,Revenue income and expenditure,Matrix SCM Ltd,9043,1,VN,201208,DT41,P1,
B,Bromsgrove District Council,Surpluses/deficits on trading undertakings,Internal Business Units and Support Services,Supplies and Services,Communication and computing,D57,Computer - software,21/11/2012,177943,"1,929.56",Revenue income and expenditure,SiteImprove,8765,1,VO,201208,IT12,P1,
B,Bromsgrove District Council,General Fund Housing Services,Homelessness Administration,Supplies and Services,Services,D47,Consultants' fees,15/11/2012,177944,250.00,Revenue income and expenditure,Guy Wardle,4866,1,VP,201208,HG08,P4,
B,Bromsgrove District Council,,,Operational Assets,Council Dwellings & Garage,100,Council Houses,21/11/2012,177945,700.00,Revenue income and expenditure,Morgan Hunt UK Ltd,9519,1,VO,201208,RB10,P1,
B,Bromsgrove District Council,Not BVACOP Service,Not BVACOP Sub Division,Current Assets,Stocks,300,Stock Movement,15/11/2012,177946,102.56,,Dennis Eagle Ltd,1191,1,VP,201208,XX611,P1,
B,Bromsgrove District Council,Not BVACOP Service,Not BVACOP Sub Division,Current Assets,Stocks,300,Stock Movement,15/11/2012,177947,522.35,,Foxall Industrial Supplies Ltd,1857,1,VP,201208,XX611,P1,
B,Bromsgrove District Council,Not BVACOP Service,Not BVACOP Sub Division,Current Assets,Stocks,300,Stock Movement,15/11/2012,177948,36.60,,Wurth UK Ltd,10087,1,VP,201208,XX611,P1,
B,Bromsgrove District Council,Environmental Services,Cemeteries,Supplies and Services,Services,D48,Contractors' fees/charges/SLA's,15/11/2012,177949,630.00,Revenue income and expenditure,Peter Price,7730,1,VP,201208,CE01,P4,
B,Bromsgrove District Council,Not BVACOP Service,Not BVACOP Sub Division,Current Assets,Stocks,300,Stock Movement,15/11/2012,177950,"1,537.80",,UK Container Maintenance UK Ltd,7672,1,VO,201208,XX611,P1,
B,Bromsgrove District Council,Surpluses/deficits on trading undertakings,Internal Business Units and Support Services,Supplies and Services,Communication and computing,D57,Computer - software,21/11/2012,177951,890.00,Revenue income and expenditure,Socitm Ltd,1594,1,VO,201208,IT12,P1,
B,Bromsgrove District Council,Environmental Services,Internal Drainage Levy Work,Premise Related Expenditure,Fixtures and Fittings,B63,Internal fixtures/fittings - maint'ce,14/11/2012,177952,36.00,Revenue income and expenditure,Imtech G&H,9989,2,VO,201208,LD02,P1,
B,Bromsgrove District Council,Not BVACOP Service,Not BVACOP Sub Division,Capital Expenditure,Operational Land and Buildings,X03,Construction work (CIS tax deductible),14/11/2012,177953,"5,500.00",Capital income and expenditure,G Purchase Construction Ltd,9837,2,VO,201208,CAPS,P1,
B,Bromsgrove District Council,Not BVACOP Service,Not BVACOP Sub Division,Capital Expenditure,"Plant, vehicles and equipment",X21,Equipment (incl. heavy plant),14/11/2012,177953,"19,500.00",Capital income and expenditure,G Purchase Construction Ltd,9837,2,VO,201208,CAPS,P1,
B,Bromsgrove District Council,Surpluses/deficits on trading undertakings,Depot Services,Supplies and Services,Services,D47,Consultants' fees,20/11/2012,177954,218.18,Revenue income and expenditure,Vanguard Consulting Ltd.,9322,3,VN,201208,BT03,P1,
B,Bromsgrove District Council,Surpluses/deficits on trading undertakings,Depot Services,Supplies and Services,Services,D47,Consultants' fees,20/11/2012,177954,"11,781.82",Revenue income and expenditure,Vanguard Consulting Ltd.,9322,3,VN,201208,BT01,P1,
B,Bromsgrove District Council,,,Third Party Payments,Other Local authorities,E31,Other local authorities,23/11/2012,177956,"4,375.00",Revenue income and expenditure,Wyre Forest District Council,4809,5,VN,201208,EP01,P1,
B,Bromsgrove District Council,Environmental Services,Cemeteries,Premise Related Expenditure,Water Services,B51,Water charges,21/11/2012,177957,66.27,Revenue income and expenditure,Severn Trent Water Ltd,2416,1,VN,201208,CE01,P4,
B,Bromsgrove District Council,Highways and transport services,Off-street Parking,Supplies and Services,Communication and computing,D76,WAN links,21/11/2012,177962,"1,187.88",Revenue income and expenditure,British Telecommunications plc,1098,1,VN,201208,CP00,P1,
B,Bromsgrove District Council,Surpluses/deficits on trading undertakings,Depot Services,Transport Related Expenditure,Direct Transport Costs,C01,Vehicle repairs/maint'ce,20/11/2012,177967,69.52,Revenue income and expenditure,Dennis Eagle Ltd,1191,1,VO,201208,DW11,P1,
B,Bromsgrove District Council,Surpluses/deficits on trading undertakings,Depot Services,Transport Related Expenditure,Direct Transport Costs,C01,Vehicle repairs/maint'ce,20/11/2012,177967,107.87,Revenue income and expenditure,Dennis Eagle Ltd,1191,1,VO,201208,DW14,P1,
B,Bromsgrove District Council,Not BVACOP Service,Not BVACOP Sub Division,Current Assets,Stocks,300,Stock Movement,21/11/2012,177969,123.60,,Truckstop Hawkes (Egglaroy Ltd T/A),6329,1,VO,201208,XX611,P1,
B,Bromsgrove District Council,Surpluses/deficits on trading undertakings,Internal Business Units and Support Services,Premise Related Expenditure,Fixtures and Fittings,B63,Internal fixtures/fittings - maint'ce,26/11/2012,177973,186.00,Revenue income and expenditure,Chubb Electronic Security Ltd,4717,1,VO,201208,ES20,P1,
B,Bromsgrove District Council,Surpluses/deficits on trading undertakings,Internal Business Units and Support Services,Supplies and Services,Communication and computing,D55,Computer - general costs,28/11/2012,177976,"1,700.00",Revenue income and expenditure,Civica  UK Ltd,1526,1,VO,201208,LS00,P1,
B,Bromsgrove District Council,Environmental Services,Public Health,Supplies and Services,Services,D43,Training fees,20/11/2012,177977,500.00,Revenue income and expenditure,Knowledge Train Ltd,10113,3,VO,201208,EH02,P1,
B,Bromsgrove District Council,Surpluses/deficits on trading undertakings,Internal Business Units and Support Services,Premise Related Expenditure,Cleaning and domestic supplies,B80,Contract cleaning,26/11/2012,177978,609.00,Revenue income and expenditure,We Clean Ltd,2966,1,VO,201208,ES20,P1,
B,Bromsgrove District Council,Surpluses/deficits on trading undertakings,Internal Business Units and Support Services,Supplies and Services,Services,D42,Seminar and course fees,28/11/2012,177979,850.00,Revenue income and expenditure,Civica  UK Ltd,1526,1,VO,201208,LS00,P1,
B,Bromsgrove District Council,Not BVACOP Service,Not BVACOP Sub Division,Current Assets,Stocks,300,Stock Movement,22/11/2012,178007,68.60,,Imperial Commercials Ltd.,1403,1,VO,201208,XX611,P1,
B,Bromsgrove District Council,Surpluses/deficits on trading undertakings,Internal Business Units and Support Services,Supplies and Services,Services,D47,Consultants' fees,21/11/2012,178018,306.90,Revenue income and expenditure,Giant Services Limited,9929,1,VO,201208,IT00,P1,
B,Bromsgrove District Council,Surpluses/deficits on trading undertakings,Internal Business Units and Support Services,Supplies and Services,Communication and computing,D50,Debt Collection Fees,28/11/2012,178019,3.50,Revenue income and expenditure,Bristow & Sutor,1085,1,VO,201208,FS08,P1,
B,Bromsgrove District Council,Surpluses/deficits on trading undertakings,Internal Business Units and Support Services,Supplies and Services,Communication and computing,D50,Debt Collection Fees,28/11/2012,178020,3.82,Revenue income and expenditure,Bristow & Sutor,1085,1,VO,201208,FS08,P1,
B,Bromsgrove District Council,Planning and Development Services,Advice,Supplies and Services,Miscellaneous expenses,D88,Miscellaneous expenses,28/11/2012,178021,65.00,Revenue income and expenditure,The Wythall Directory,4454,1,VO,201208,DC00,P4,
B,Bromsgrove District Council,Surpluses/deficits on trading undertakings,Depot Services,Supplies and Services,"Clothes, uniform and laundry",D31,Clothing and uniforms,21/11/2012,178022,37.50,Revenue income and expenditure,Focal Image,1252,1,VO,201208,DS62,P4,
B,Bromsgrove District Council,Surpluses/deficits on trading undertakings,Depot Services,Supplies and Services,"Clothes, uniform and laundry",D31,Clothing and uniforms,21/11/2012,178022,5.50,Revenue income and expenditure,Focal Image,1252,1,VO,201208,DS62,P1,
B,Bromsgrove District Council,Highways and transport services,Off-street Parking,Supplies and Services,"Equipment, furniture and materials",D06,Materials - purchased,21/11/2012,178023,75.00,Revenue income and expenditure,Focal Image,1252,1,VO,201208,CP00,P1,
B,Bromsgrove District Council,Not BVACOP Service,Not BVACOP Sub Division,Current Assets,Stocks,300,Stock Movement,21/11/2012,178024,22.50,,Focal Image,1252,1,VO,201208,XX611,P1,
B,Bromsgrove District Council,Surpluses/deficits on trading undertakings,Depot Services,Supplies and Services,"Clothes, uniform and laundry",D31,Clothing and uniforms,21/11/2012,178025,4.00,Revenue income and expenditure,Focal Image,1252,1,VO,201208,DW21,P1,
B,Bromsgrove District Council,Environmental Services,Public Toilets,Premise Related Expenditure,Water Services,B51,Water charges,29/11/2012,178027,"1,641.14",Revenue income and expenditure,Severn Trent Water Ltd,2416,1,VN,201208,PC04,P4,
B,Bromsgrove District Council,Cultural and Related Services,Community Centres,Premise Related Expenditure,Water Services,B51,Water charges,29/11/2012,178028,261.48,Revenue income and expenditure,Severn Trent Water Ltd,2416,1,VN,201208,SS01,P4,
B,Bromsgrove District Council,Central Services to the Public,Registration of Electors,Supplies and Services,Communication and computing,D53,Postage/packaging,27/11/2012,178030,83.00,Revenue income and expenditure,Royal Mail Group Plc,1558,1,VN,201208,EL00,P1,
B,Bromsgrove District Council,,,Premise Related Expenditure,Cleaning and domestic supplies,B81,Cleaning and domestic supplies,21/11/2012,178042,22.64,Revenue income and expenditure,Initial Washroom Solutions Ltd.,5187,1,VO,201208,CC01,P1,
B,Bromsgrove District Council,Planning and Development Services,Other Building control work,Supplies and Services,Miscellaneous expenses,D87,Marketing/promotion/publicity,21/11/2012,178043,282.75,Revenue income and expenditure,Abacus Signs,10206,1,VO,201208,BC00,P4,
B,Bromsgrove District Council,Surpluses/deficits on trading undertakings,Depot Services,Supplies and Services,Communication and computing,D53,Postage/packaging,29/11/2012,178045,15.25,Revenue income and expenditure,CP Davidson & Sons Ltd,5790,1,VO,201208,DW14,P1,
B,Bromsgrove District Council,Surpluses/deficits on trading undertakings,Depot Services,Transport Related Expenditure,Direct Transport Costs,C01,Vehicle repairs/maint'ce,29/11/2012,178045,313.83,Revenue income and expenditure,CP Davidson & Sons Ltd,5790,1,VO,201208,DW14,P1,
B,Bromsgrove District Council,Not BVACOP Service,Not BVACOP Sub Division,Current Assets,Stocks,300,Stock Movement,21/11/2012,178047,486.08,,Greenham Trading Ltd,1285,1,VO,201208,XX611,P1,
B,Bromsgrove District Council,Not BVACOP Service,Not BVACOP Sub Division,Current Assets,Stocks,300,Stock Movement,21/11/2012,178048,381.92,,Greenham Trading Ltd,1285,1,VO,201208,XX611,P1,
B,Bromsgrove District Council,Surpluses/deficits on trading undertakings,Depot Services,Transport Related Expenditure,Direct Transport Costs,C01,Vehicle repairs/maint'ce,28/11/2012,178050,35.00,Revenue income and expenditure,Imperial Commercials Ltd.,1403,1,VO,201208,DW11,P1,
B,Bromsgrove District Council,Surpluses/deficits on trading undertakings,Depot Services,Transport Related Expenditure,Direct Transport Costs,C01,Vehicle repairs/maint'ce,28/11/2012,178050,93.00,Revenue income and expenditure,Imperial Commercials Ltd.,1403,1,VO,201208,DW11,P4,
B,Bromsgrove District Council,Surpluses/deficits on trading undertakings,Depot Services,Transport Related Expenditure,Direct Transport Costs,C01,Vehicle repairs/maint'ce,28/11/2012,178051,169.00,Revenue income and expenditure,Imperial Commercials Ltd.,1403,1,VO,201208,DW18,P4,
B,Bromsgrove District Council,Surpluses/deficits on trading undertakings,Depot Services,Transport Related Expenditure,Direct Transport Costs,C01,Vehicle repairs/maint'ce,28/11/2012,178051,52.50,Revenue income and expenditure,Imperial Commercials Ltd.,1403,1,VO,201208,DW18,P1,
B,Bromsgrove District Council,Not BVACOP Service,Not BVACOP Sub Division,Current Assets,Stocks,300,Stock Movement,21/11/2012,178053,276.73,,Scarab Sweepers Ltd,5827,1,VO,201208,XX611,P1,
B,Bromsgrove District Council,Surpluses/deficits on trading undertakings,Depot Services,Transport Related Expenditure,Direct Transport Costs,C01,Vehicle repairs/maint'ce,21/11/2012,178054,112.43,Revenue income and expenditure,Scarab Sweepers Ltd,5827,1,VO,201208,DW21,P1,
B,Bromsgrove District Council,Not BVACOP Service,Not BVACOP Sub Division,Current Assets,Stocks,300,Stock Movement,28/11/2012,178055,708.28,,PCS Jangro,7294,1,VO,201208,XX611,P1,
B,Bromsgrove District Council,Not BVACOP Service,Not BVACOP Sub Division,Current Assets,Stocks,300,Stock Movement,28/11/2012,178056,239.76,,PCS Jangro,7294,1,VO,201208,XX611,P1,
B,Bromsgrove District Council,Surpluses/deficits on trading undertakings,Depot Services,Supplies and Services,Miscellaneous expenses,D88,Miscellaneous expenses,21/11/2012,178057,68.76,Revenue income and expenditure,Portway Motor Services Ltd,1902,1,VO,201208,DW23,P1,
B,Bromsgrove District Council,Surpluses/deficits on trading undertakings,Depot Services,Transport Related Expenditure,Direct Transport Costs,C01,Vehicle repairs/maint'ce,28/11/2012,178058,541.40,Revenue income and expenditure,Imperial Commercials Ltd.,1403,1,VO,201208,DW11,P1,
B,Bromsgrove District Council,Surpluses/deficits on trading undertakings,Depot Services,Supplies and Services,Services,D42,Seminar and course fees,21/11/2012,178060,215.00,Revenue income and expenditure,Top Gear,1651,1,VO,201208,DW21,P4,
B,Bromsgrove District Council,Surpluses/deficits on trading undertakings,Depot Services,Supplies and Services,Services,D42,Seminar and course fees,21/11/2012,178060,850.00,Revenue income and expenditure,Top Gear,1651,1,VO,201208,DW21,P1,
B,Bromsgrove District Council,,,Supplies and Services,Miscellaneous expenses,D88,Miscellaneous expenses,21/11/2012,178061,36.00,Revenue income and expenditure,G4S Cash Solutions UK Ltd.,9753,1,VO,201208,CC01,P1,
B,Bromsgrove District Council,,,Supplies and Services,Miscellaneous expenses,D88,Miscellaneous expenses,21/11/2012,178062,195.54,Revenue income and expenditure,G4S Cash Solutions UK Ltd.,9753,1,VO,201208,CC01,P1,
B,Bromsgrove District Council,Surpluses/deficits on trading undertakings,Depot Services,Supplies and Services,"Equipment, furniture and materials",D06,Materials - purchased,21/11/2012,178063,44.88,Revenue income and expenditure,Pressure Coolers Trading as Maestro International,9070,1,VO,201208,DP02,P1,
B,Bromsgrove District Council,Not BVACOP Service,Not BVACOP Sub Division,Current Assets,Stocks,300,Stock Movement,21/11/2012,178064,16.93,,Imperial Commercials Ltd.,1403,1,VO,201208,XX611,P1,
B,Bromsgrove District Council,Not BVACOP Service,Not BVACOP Sub Division,Current Assets,Stocks,300,Stock Movement,21/11/2012,178065,50.28,,Imperial Commercials Ltd.,1403,1,VO,201208,XX611,P1,
B,Bromsgrove District Council,Not BVACOP Service,Not BVACOP Sub Division,Current Assets,Stocks,300,Stock Movement,21/11/2012,178066,44.67,,Imperial Commercials Ltd.,1403,1,VO,201208,XX611,P1,
B,Bromsgrove District Council,Not BVACOP Service,Not BVACOP Sub Division,Current Assets,Stocks,300,Stock Movement,21/11/2012,178067,51.26,,Imperial Commercials Ltd.,1403,1,VO,201208,XX611,P1,
B,Bromsgrove District Council,Surpluses/deficits on trading undertakings,Depot Services,Transport Related Expenditure,Direct Transport Costs,C01,Vehicle repairs/maint'ce,21/11/2012,178068,201.00,Revenue income and expenditure,Imperial Commercials Ltd.,1403,1,VO,201208,DS61,P1,
B,Bromsgrove District Council,Not BVACOP Service,Not BVACOP Sub Division,Capital Expenditure,Capital Grants,X30,Capital grants,29/11/2012,178072,49.00,Capital income and expenditure,Domestic & General Insulation Ltd,10011,2,VP,201208,CAPP,P5,
B,Bromsgrove District Council,Surpluses/deficits on trading undertakings,Internal Business Units and Support Services,Supplies and Services,Catering,D22,Vending purchases/costs,21/11/2012,178073,115.60,Revenue income and expenditure,Complete Vending Services Ltd,1155,1,VP,201208,ES36,P4,
B,Bromsgrove District Council,Surpluses/deficits on trading undertakings,Internal Business Units and Support Services,Supplies and Services,Services,D43,Training fees,21/11/2012,178074,823.26,Revenue income and expenditure,PDP,8753,1,VP,201208,IT12,P1,
B,Bromsgrove District Council,Not BVACOP Service,Not BVACOP Sub Division,Capital Expenditure,"Plant, vehicles and equipment",X23,Software,22/11/2012,178075,"18,000.00",Capital income and expenditure,IDOX Software Ltd,6852,1,VO,201208,CAPR,P1,
B,Bromsgrove District Council,Surpluses/deficits on trading undertakings,Internal Business Units and Support Services,Supplies and Services,Communication and computing,D59,Telephones,21/11/2012,178082,197.89,Revenue income and expenditure,Thus plc.,5306,1,VN,201208,IT12,P1,
B,Bromsgrove District Council,Surpluses/deficits on trading undertakings,Internal Business Units and Support Services,Supplies and Services,Communication and computing,D59,Telephones,21/11/2012,178083,644.08,Revenue income and expenditure,Daisy Communications,7578,1,VN,201208,IT12,P1,
B,Bromsgrove District Council,Surpluses/deficits on trading undertakings,Internal Business Units and Support Services,Supplies and Services,Communication and computing,D77,Internet,21/11/2012,178084,71.70,Revenue income and expenditure,British Telecommunications plc,1098,1,VN,201208,IT12,P1,
B,Bromsgrove District Council,Surpluses/deficits on trading undertakings,Internal Business Units and Support Services,Supplies and Services,Communication and computing,D77,Internet,21/11/2012,178085,86.70,Revenue income and expenditure,British Telecommunications plc,1098,1,VN,201208,IT12,P1,
B,Bromsgrove District Council,Surpluses/deficits on trading undertakings,Depot Services,Supplies and Services,Miscellaneous expenses,D88,Miscellaneous expenses,21/11/2012,178089,188.00,Revenue income and expenditure,The Chartered Inst of Wastes Management,1929,5,VP,201208,DP02,P4,
B,Bromsgrove District Council,,,Employees,Direct Employee Expenses,A10,Agency workers,29/11/2012,178090,900.00,Revenue income and expenditure,Morgan Hunt UK Ltd,9519,1,VO,201208,RB10,P1,
B,Bromsgrove District Council,Surpluses/deficits on trading undertakings,Depot Services,Employees,Direct Employee Expenses,A10,Agency workers,26/11/2012,178091,654.75,Revenue income and expenditure,Matrix SCM Ltd,9043,1,VN,201208,DT41,P1,
B,Bromsgrove District Council,Surpluses/deficits on trading undertakings,Depot Services,Employees,Direct Employee Expenses,A10,Agency workers,26/11/2012,178091,"4,899.47",Revenue income and expenditure,Matrix SCM Ltd,9043,1,VN,201208,DW11,P1,
B,Bromsgrove District Council,Surpluses/deficits on trading undertakings,Depot Services,Employees,Direct Employee Expenses,A10,Agency workers,26/11/2012,178091,470.03,Revenue income and expenditure,Matrix SCM Ltd,9043,1,VN,201208,DW32,P1,
B,Bromsgrove District Council,Surpluses/deficits on trading undertakings,Depot Services,Employees,Direct Employee Expenses,A10,Agency workers,26/11/2012,178091,686.07,Revenue income and expenditure,Matrix SCM Ltd,9043,1,VN,201208,DW21,P1,
B,Bromsgrove District Council,Surpluses/deficits on trading undertakings,Depot Services,Employees,Direct Employee Expenses,A10,Agency workers,26/11/2012,178091,59.85,Revenue income and expenditure,Matrix SCM Ltd,9043,1,VN,201208,DP02,P1,
B,Bromsgrove District Council,Planning and Development Services,Advice,Employees,Direct Employee Expenses,A10,Agency workers,26/11/2012,178091,533.62,Revenue income and expenditure,Matrix SCM Ltd,9043,1,VN,201208,DC00,P1,
B,Bromsgrove District Council,Not BVACOP Service,Not BVACOP Sub Division,Current Assets,Stocks,300,Stock Movement,03/12/2012,178095,-56.67,,Imperial Commercials Ltd.,1403,1,CN,201208,XX611,P1,
B,Bromsgrove District Council,Not BVACOP Service,Not BVACOP Sub Division,Current Assets,Stocks,300,Stock Movement,28/11/2012,178096,186.30,,Focal Image,1252,1,VO,201208,XX611,P4,
B,Bromsgrove District Council,Not BVACOP Service,Not BVACOP Sub Division,Current Assets,Stocks,300,Stock Movement,28/11/2012,178097,124.82,,Truckstop Hawkes (Egglaroy Ltd T/A),6329,1,VO,201208,XX611,P1,
B,Bromsgrove District Council,Not BVACOP Service,Not BVACOP Sub Division,Current Assets,Stocks,300,Stock Movement,28/11/2012,178098,673.80,,Foxall Industrial Supplies Ltd,1857,1,VO,201208,XX611,P1,
B,Bromsgrove District Council,Surpluses/deficits on trading undertakings,Internal Business Units and Support Services,Supplies and Services,Catering,D22,Vending purchases/costs,28/11/2012,178100,9.00,Revenue income and expenditure,Blue Mountain Water,9003,1,VO,201208,IT00,P1,
B,Bromsgrove District Council,General Fund Housing Services,Homelessness Administration,Supplies and Services,Services,D47,Consultants' fees,03/12/2012,178106,250.00,Revenue income and expenditure,Valuation Office Agency,4325,1,VO,201208,HG08,P1,
B,Bromsgrove District Council,Not BVACOP Service,Not BVACOP Sub Division,Capital Expenditure,"Plant, vehicles and equipment",X23,Software,28/11/2012,178107,"105,575.00",Capital income and expenditure,IDOX Software Ltd,6852,1,VO,201208,CAPR,P1,
B,Bromsgrove District Council,Surpluses/deficits on trading undertakings,Internal Business Units and Support Services,Supplies and Services,Grants and subscriptions,D73,Contributions,28/11/2012,178109,"1,250.00",Revenue income and expenditure,Bromsgrove Muslim Community Trust,8984,1,VO,201208,LS05,P4,
B,Bromsgrove District Council,Not BVACOP Service,Not BVACOP Sub Division,Current Assets,Stocks,300,Stock Movement,03/12/2012,178112,-105.00,,Truckstop Hawkes (Egglaroy Ltd T/A),6329,1,CN,201208,XX611,P1,
B,Bromsgrove District Council,Surpluses/deficits on trading undertakings,Internal Business Units and Support Services,Third Party Payments,Other Local authorities,E31,Other local authorities,29/11/2012,178113,"8,395.20",Revenue income and expenditure,Redditch Borough Council,1533,5,VN,201208,PS04,P1,
B,Bromsgrove District Council,Surpluses/deficits on trading undertakings,Internal Business Units and Support Services,Third Party Payments,Other Local authorities,E31,Other local authorities,29/11/2012,178113,"6,387.61",Revenue income and expenditure,Redditch Borough Council,1533,5,VN,201208,PS05,P1,
B,Bromsgrove District Council,Surpluses/deficits on trading undertakings,Internal Business Units and Support Services,Supplies and Services,Services,D43,Training fees,29/11/2012,178113,"13,535.22",Revenue income and expenditure,Redditch Borough Council,1533,5,VN,201208,PS02,P1,
B,Bromsgrove District Council,Surpluses/deficits on trading undertakings,Internal Business Units and Support Services,Third Party Payments,Other Local authorities,E31,Other local authorities,29/11/2012,178113,"39,464.55",Revenue income and expenditure,Redditch Borough Council,1533,5,VN,201208,PS00,P1,
B,Bromsgrove District Council,Surpluses/deficits on trading undertakings,Internal Business Units and Support Services,Third Party Payments,Other Local authorities,E31,Other local authorities,29/11/2012,178113,"4,353.66",Revenue income and expenditure,Redditch Borough Council,1533,5,VN,201208,PS02,P1,
B,Bromsgrove District Council,Surpluses/deficits on trading undertakings,Depot Services,Supplies and Services,Miscellaneous expenses,D88,Miscellaneous expenses,28/11/2012,178125,40.20,Revenue income and expenditure,Mercia Waste Management Ltd,1433,1,VO,201208,DW32,P1,
B,Bromsgrove District Council,Environmental Services,Cemeteries,Supplies and Services,Miscellaneous expenses,D88,Miscellaneous expenses,28/11/2012,178125,12.90,Revenue income and expenditure,Mercia Waste Management Ltd,1433,1,VO,201208,CE01,P1,
B,Bromsgrove District Council,Not BVACOP Service,Not BVACOP Sub Division,Current Assets,Stocks,300,Stock Movement,28/11/2012,178127,925.00,,Ultrasol,5459,1,VO,201208,XX611,P1,
B,Bromsgrove District Council,Not BVACOP Service,Not BVACOP Sub Division,Current Assets,Stocks,300,Stock Movement,28/11/2012,178128,85.20,,Ultrasol,5459,1,VO,201208,XX611,P1,
B,Bromsgrove District Council,Not BVACOP Service,Not BVACOP Sub Division,Current Assets,Stocks,300,Stock Movement,28/11/2012,178129,"5,508.40",,Craemer  UK Limited,2583,1,VO,201208,XX611,P1,
B,Bromsgrove District Council,Environmental Services,Cemeteries,Supplies and Services,Services,D43,Training fees,29/11/2012,178134,"1,200.00",Revenue income and expenditure,Pesticide Training,6824,1,VO,201208,CE01,P1,
B,Bromsgrove District Council,Not BVACOP Service,Not BVACOP Sub Division,Current Assets,Stocks,300,Stock Movement,28/11/2012,178136,917.76,,Danline International Ltd,4507,1,VO,201208,XX611,P1,
B,Bromsgrove District Council,Surpluses/deficits on trading undertakings,Internal Business Units and Support Services,Supplies and Services,Communication and computing,D51,Printing and stationery,28/11/2012,178139,392.00,Revenue income and expenditure,Antalis Ltd,1768,1,VO,201208,PS01,P1,
B,Bromsgrove District Council,Not BVACOP Service,Not BVACOP Sub Division,Current Assets,Stocks,300,Stock Movement,28/11/2012,178152,255.84,,PCS Jangro,7294,1,VO,201208,XX611,P1,
B,Bromsgrove District Council,,,Supplies and Services,Communication and computing,D51,Printing and stationery,29/11/2012,178154,17.41,Revenue income and expenditure,Office Depot UK Ltd,6249,1,VO,201208,CD41,P1,
B,Bromsgrove District Council,Not BVACOP Service,Not BVACOP Sub Division,Current Assets,Stocks,300,Stock Movement,29/11/2012,178156,"11,954.40",,Craemer  UK Limited,2583,1,VO,201208,XX611,P1,
B,Bromsgrove District Council,Not BVACOP Service,Not BVACOP Sub Division,Current Assets,Stocks,300,Stock Movement,29/11/2012,178157,"11,837.20",,Craemer  UK Limited,2583,1,VO,201208,XX611,P1,
B,Bromsgrove District Council,Surpluses/deficits on trading undertakings,Depot Services,Premise Related Expenditure,"Repairs, alterations and maint. of buildings",B02,External repair/maint. (reg'd for gross pay't),28/11/2012,178158,850.00,Revenue income and expenditure,Aqua Cleansing Ltd,6717,1,VO,201208,DP02,P1,
B,Bromsgrove District Council,Surpluses/deficits on trading undertakings,Internal Business Units and Support Services,Supplies and Services,Communication and computing,D52,Books and publications,29/11/2012,178160,"1,118.60",Revenue income and expenditure,Sweet & Maxwell Ltd,1626,1,VO,201208,LS00,P4,
B,Bromsgrove District Council,Surpluses/deficits on trading undertakings,Depot Services,Supplies and Services,Communication and computing,D51,Printing and stationery,29/11/2012,178162,67.10,Revenue income and expenditure,Office Depot UK Ltd,6249,1,VO,201208,DP02,P1,
B,Bromsgrove District Council,Surpluses/deficits on trading undertakings,Depot Services,Transport Related Expenditure,Direct Transport Costs,C01,Vehicle repairs/maint'ce,29/11/2012,178163,79.00,Revenue income and expenditure,Imperial Commercials Ltd.,1403,1,VO,201208,DW14,P1,
B,Bromsgrove District Council,,,Supplies and Services,Miscellaneous expenses,D88,Miscellaneous expenses,03/12/2012,178174,31.05,Revenue income and expenditure,Experian Ltd,1903,1,VN,201208,RB02,P1,
B,Bromsgrove District Council,,,Supplies and Services,Miscellaneous expenses,D88,Miscellaneous expenses,03/12/2012,178175,34.85,Revenue income and expenditure,Experian Ltd,1903,1,VN,201208,RB02,P1,
B,Bromsgrove District Council,,,Supplies and Services,Miscellaneous expenses,D88,Miscellaneous expenses,03/12/2012,178176,94.15,Revenue income and expenditure,Experian Ltd,1903,1,VN,201208,RB02,P1,
B,Bromsgrove District Council,,,Supplies and Services,Miscellaneous expenses,D88,Miscellaneous expenses,03/12/2012,178177,131.30,Revenue income and expenditure,Experian Ltd,1903,1,VN,201208,RB02,P1,
B,Bromsgrove District Council,,,Supplies and Services,Miscellaneous expenses,D88,Miscellaneous expenses,03/12/2012,178178,143.40,Revenue income and expenditure,Experian Ltd,1903,1,VN,201208,RB02,P1,
B,Bromsgrove District Council,,,Supplies and Services,Miscellaneous expenses,D88,Miscellaneous expenses,03/12/2012,178179,81.90,Revenue income and expenditure,Experian Ltd,1903,1,VN,201208,RB02,P1,
B,Bromsgrove District Council,,,Supplies and Services,Miscellaneous expenses,D88,Miscellaneous expenses,03/12/2012,178180,42.70,Revenue income and expenditure,Experian Ltd,1903,1,VN,201208,RB02,P1,
B,Bromsgrove District Council,Surpluses/deficits on trading undertakings,Depot Services,Premise Related Expenditure,Water Services,B51,Water charges,29/11/2012,178184,"5,084.11",Revenue income and expenditure,Severn Trent Water,8934,1,VP,201208,DS61,P4,
B,Bromsgrove District Council,Surpluses/deficits on trading undertakings,Depot Services,Transport Related Expenditure,Contract Hire and operating leases,C31,Contract hire of vehicles,29/11/2012,178185,"1,045.00",Revenue income and expenditure,Priority Hire Ltd,9764,1,VP,201208,DW11,P1,
B,Bromsgrove District Council,Surpluses/deficits on trading undertakings,Internal Business Units and Support Services,Supplies and Services,Services,D47,Consultants' fees,03/12/2012,178187,100.00,Revenue income and expenditure,Phoenix Software Ltd,2091,1,VO,201208,IT12,P1,
B,Bromsgrove District Council,Environmental Services,Cemeteries,Supplies and Services,"Equipment, furniture and materials",D06,Materials - purchased,03/12/2012,178203,630.60,Revenue income and expenditure,Alba Trees Ltd.,7971,1,VO,201208,CE01,P1,
B,Bromsgrove District Council,Not BVACOP Service,Not BVACOP Sub Division,Current Assets,Stocks,300,Stock Movement,29/11/2012,178218,199.20,,Chello Blended Chemicals,1124,1,VP,201208,XX611,P1,
B,Bromsgrove District Council,Not BVACOP Service,Not BVACOP Sub Division,Current Assets,Stocks,300,Stock Movement,03/12/2012,178220,130.00,,Magnatec (Stourbridge) Ltd,5294,1,VO,201208,XX611,P1,
B,Bromsgrove District Council,Not BVACOP Service,Not BVACOP Sub Division,Current Assets,Stocks,300,Stock Movement,03/12/2012,178229,-135.00,,Brenntag UK Ltd,8751,1,CN,201208,XX611,P1,
B,Bromsgrove District Council,Surpluses/deficits on trading undertakings,Internal Business Units and Support Services,Supplies and Services,"Equipment, furniture and materials",D06,Materials - purchased,09/11/2012,2064852,20.83,Revenue income and expenditure,National Westminter Bank plc,0,,PC,201208,ES20,P6,GPC  Oct 12 - broadstreet diy
B,Bromsgrove District Council,Planning and Development Services,Other Building control work,Employees,Indirect Employee Expenses,A32,Long service awards,09/11/2012,2064852,254.25,Revenue income and expenditure,National Westminter Bank plc,0,,PC,201208,BC00,P4,GPC  Oct 12 - High Street Vouchers
B,Bromsgrove District Council,,,Supplies and Services,Miscellaneous expenses,D87,Marketing/promotion/publicity,09/11/2012,2064852,419.00,Revenue income and expenditure,National Westminter Bank plc,0,,PC,201208,CM19,P3,GPC  Oct 12 - Shutterstock
B,Bromsgrove District Council,Cultural and Related Services,Community Centres,Supplies and Services,"Equipment, furniture and materials",D06,Materials - purchased,09/11/2012,2064852,126.80,Revenue income and expenditure,National Westminter Bank plc,0,,PC,201208,SS01,P5,GPC  Oct 12 - Amazon
B,Bromsgrove District Council,Surpluses/deficits on trading undertakings,Depot Services,Supplies and Services,Services,D43,Training fees,06/12/2012,2065109,113.75,Revenue income and expenditure,National Westminter Bank plc,0,,PC,201208,DP02,P3,GPC  Nov 12 - DSA
B,Bromsgrove District Council,Surpluses/deficits on trading undertakings,Depot Services,Supplies and Services,"Equipment, furniture and materials",D01,Equipment - purchase,06/12/2012,2065109,447.71,Revenue income and expenditure,National Westminter Bank plc,0,,PC,201208,DT41,P6,GPC  Nov 12 - Cromwell
B,Bromsgrove District Council,Not BVACOP Service,Not BVACOP Sub Division,Current Assets,Stocks,300,Stock Movement,06/12/2012,2065109,93.00,,National Westminter Bank plc,0,,PC,201208,XX611,P6,GPC  Nov 12 - ATE
B,Bromsgrove District Council,Surpluses/deficits on trading undertakings,Depot Services,Transport Related Expenditure,Direct Transport Costs,C07,Licences,06/12/2012,2065109,565.00,Revenue income and expenditure,National Westminter Bank plc,0,,PC,201208,DW11,P5,GPC  Nov 12 - DVLA
B,Bromsgrove District Council,Surpluses/deficits on trading undertakings,Depot Services,Employees,Indirect Employee Expenses,A23,Training for professional qualifications,06/12/2012,2065109,17.50,Revenue income and expenditure,National Westminter Bank plc,0,,PC,201208,DP02,P3,GPC  Nov 12 - DSA
B,Bromsgrove District Council,Surpluses/deficits on trading undertakings,Depot Services,Transport Related Expenditure,Direct Transport Costs,C01,Vehicle repairs/maint'ce,06/12/2012,2065109,56.00,Revenue income and expenditure,National Westminter Bank plc,0,,PC,201208,DS62,P6,GPC  Nov 12 - ATE
B,Bromsgrove District Council,Surpluses/deficits on trading undertakings,Depot Services,Supplies and Services,"Equipment, furniture and materials",D04,Equipment - specialist,06/12/2012,2065109,65.98,Revenue income and expenditure,National Westminter Bank plc,0,,PC,201208,DP02,P6,GPC  Nov 12 - www buy stationery
B,Bromsgrove District Council,Surpluses/deficits on trading undertakings,Depot Services,Supplies and Services,"Equipment, furniture and materials",D06,Materials - purchased,06/12/2012,2065109,218.94,Revenue income and expenditure,National Westminter Bank plc,0,,PC,201208,DT41,P5,GPC  Nov 12 - Paypal Deltecindus
B,Bromsgrove District Council,Surpluses/deficits on trading undertakings,Internal Business Units and Support Services,Supplies and Services,Communication and computing,D59,Telephones,30/11/2012,4000758,633.35,Revenue income and expenditure,National Westminter Bank plc,0,,RV,201208,IT12,P1,Cancelled:201208:2065040:2
B,Bromsgrove District Council,Highways and transport services,Off-street Parking,Supplies and Services,Miscellaneous expenses,D88,Miscellaneous expenses,05/11/2012,7049855,19.90,Revenue income and expenditure,PERSONAL DATA REDACTED,10201,3,AP,201208,CP00,P3,
B,Bromsgrove District Council,Cultural and Related Services,Indoor Sports and Recreation Facilities,Supplies and Services,Miscellaneous expenses,D88,Miscellaneous expenses,20/11/2012,7049864,"4,561.20",Revenue income and expenditure,Wychavon Leisure Community Association Ltd,7352,1,AP,201208,SC01,P5,
B,Bromsgrove District Council,Surpluses/deficits on trading undertakings,Depot Services,Supplies and Services,"Equipment, furniture and materials",D01,Equipment - purchase,20/11/2012,7049865,19.00,Revenue income and expenditure,D V L A,3746,5,AP,201208,DW11,P5,
B,Bromsgrove District Council,General Fund Housing Services,Housing Strategy,Premise Related Expenditure,Rents,B30,Rents,20/11/2012,7049867,395.00,Revenue income and expenditure,PERSONAL DATA REDACTED,10007,3,AP,201208,HG51,P4,
B,Bromsgrove District Council,Surpluses/deficits on trading undertakings,Internal Business Units and Support Services,Premise Related Expenditure,Fixtures and Fittings,B63,Internal fixtures/fittings - maint'ce,22/11/2012,7049881,934.00,Revenue income and expenditure,Locke & Eastwood,1409,2,AP,201208,ES20,P1,
B,Bromsgrove District Council,General Fund Housing Services,Housing Strategy,Premise Related Expenditure,Rents,B30,Rents,26/11/2012,7049883,525.00,Revenue income and expenditure,PERSONAL DATA REDACTED,8707,3,AP,201208,HG51,P4,
B,Bromsgrove District Council,General Fund Housing Services,Housing Strategy,Premise Related Expenditure,Rents,B30,Rents,27/11/2012,7049885,171.00,Revenue income and expenditure,PERSONAL DATA REDACTED,10007,3,AP,201208,HG51,P4,
B,Bromsgrove District Council,,,Supplies and Services,Miscellaneous expenses,D85,General expenses,27/11/2012,7049886,37.00,Revenue income and expenditure,The Royal British Legion Poppy Appeal Bromsgrove,7926,3,AP,201208,CD61,0,
B,Bromsgrove District Council,,,Supplies and Services,Miscellaneous expenses,D85,General expenses,27/11/2012,7049887,38.00,Revenue income and expenditure,Rubery and Rednal Royal British Legion Branch,6893,1,AP,201208,CD61,0,
B,Bromsgrove District Council,Cultural and Related Services,Indoor Sports and Recreation Facilities,Supplies and Services,Miscellaneous expenses,D88,Miscellaneous expenses,29/11/2012,7049901,"4,860.75",Revenue income and expenditure,Wychavon Leisure Community Association Ltd,7352,1,AP,201208,SC01,P5,
B,Bromsgrove District Council,General Fund Housing Services,,Supplies and Services,Services,D49,Miscellaneous services,05/11/2012,2064789,3.00,Revenue income and expenditure,Land Registry,0,,JN,201208,HG37,P3,
B,Bromsgrove District Council,Surpluses/deficits on trading undertakings,Internal Business Units and Support Services,Supplies and Services,Services,D49,Miscellaneous services,05/11/2012,2064789,3.00,Revenue income and expenditure,Land Registry,0,,JN,201208,EH00,P3,
B,Bromsgrove District Council,Planning and Development Services,Supplementary planning guidance,Supplies and Services,Miscellaneous expenses,D88,Miscellaneous expenses,05/11/2012,2064789,7.00,Revenue income and expenditure,Land Registry,0,,JN,201208,LP01,P3,
B,Bromsgrove District Council,General Fund Housing Services,Housing Strategy,Supplies and Services,Miscellaneous expenses,D88,Miscellaneous expenses,05/11/2012,2064789,40.00,Revenue income and expenditure,Land Registry,0,,JN,201208,HG20,P3,
B,Bromsgrove District Council,General Fund Housing Services,Housing Strategy,Supplies and Services,Miscellaneous expenses,D88,Miscellaneous expenses,05/11/2012,2064789,11.00,Revenue income and expenditure,Land Registry,0,,JN,201208,HG20,P3,
B,Bromsgrove District Council,Surpluses/deficits on trading undertakings,Internal Business Units and Support Services,Supplies and Services,Services,D49,Miscellaneous services,07/11/2012,2064824,33.00,Revenue income and expenditure,Land Registry,0,,JN,201208,LS00,P3,
B,Bromsgrove District Council,Planning and Development Services,Supplementary planning guidance,Supplies and Services,Miscellaneous expenses,D88,Miscellaneous expenses,07/11/2012,2064824,6.00,Revenue income and expenditure,Land Registry,0,,JN,201208,LP01,P3,
B,Bromsgrove District Council,General Fund Housing Services,Housing Strategy,Supplies and Services,Services,D49,Miscellaneous services,07/11/2012,2064824,6.00,Revenue income and expenditure,Land Registry,0,,JN,201208,HG20,P3,
B,Bromsgrove District Council,General Fund Housing Services,Housing Strategy,Supplies and Services,Miscellaneous expenses,D88,Miscellaneous expenses,07/11/2012,2064824,-11.00,Revenue income and expenditure,Land Registry,0,,JN,201208,HG20,P3,
B,Bromsgrove District Council,Surpluses/deficits on trading undertakings,Internal Business Units and Support Services,Supplies and Services,Services,D49,Miscellaneous services,12/11/2012,2064869,262.46,Revenue income and expenditure,HSBC,0,,JN,201208,FS07,P3,
B,Bromsgrove District Council,,,Supplies and Services,Services,D49,Miscellaneous services,12/11/2012,2064869,"1,869.92",Revenue income and expenditure,HSBC,0,,JN,201208,RB01,P3,
B,Bromsgrove District Council,Surpluses/deficits on trading undertakings,Internal Business Units and Support Services,Supplies and Services,Services,D49,Miscellaneous services,12/11/2012,2064869,25.00,Revenue income and expenditure,HSBC,0,,JN,201208,FS07,P6,
B,Bromsgrove District Council,Non-Distributable Costs,Non-Distributable Overheads,Employees,Indirect Employee Expenses,A20,Unapportionable employee overheads,12/11/2012,2064869,"71,708.33",Revenue income and expenditure,HSBC,0,,JN,201208,ND00,0,
B,Bromsgrove District Council,,,Supplies and Services,Miscellaneous expenses,D88,Miscellaneous expenses,14/11/2012,2064887,12.00,Revenue income and expenditure,Land Registry,0,,JN,201208,RB03,P3,
B,Bromsgrove District Council,Surpluses/deficits on trading undertakings,Internal Business Units and Support Services,Supplies and Services,Services,D49,Miscellaneous services,19/11/2012,2064914,"1,676.00",Revenue income and expenditure,Hsbc Merchant Services,0,,JN,201208,FS07,P3,
B,Bromsgrove District Council,,,Supplies and Services,Miscellaneous expenses,D88,Miscellaneous expenses,21/11/2012,2064938,6.00,Revenue income and expenditure,Land Registry,0,,JN,201208,RB03,P3,
B,Bromsgrove District Council,Surpluses/deficits on trading undertakings,Internal Business Units and Support Services,Supplies and Services,Services,D49,Miscellaneous services,21/11/2012,2064938,6.00,Revenue income and expenditure,Land Registry,0,,JN,201208,LS00,P3,
B,Bromsgrove District Council,General Fund Housing Services,Housing Strategy,Supplies and Services,Miscellaneous expenses,D88,Miscellaneous expenses,28/11/2012,2065009,40.00,Revenue income and expenditure,Land Registry,0,,JN,201208,HG20,P3,
B,Bromsgrove District Council,Planning and Development Services,Supplementary planning guidance,Supplies and Services,Miscellaneous expenses,D88,Miscellaneous expenses,28/11/2012,2065009,8.00,Revenue income and expenditure,Land Registry,0,,JN,201208,LP01,P3,
B,Bromsgrove District Council,Cultural and Related Services,Community parks and open spaces,Supplies and Services,Miscellaneous expenses,D85,General expenses,28/11/2012,2065009,4.00,Revenue income and expenditure,Land Registry,0,,JN,201208,RG01,P3,
B,Bromsgrove District Council,,,Supplies and Services,Miscellaneous expenses,D88,Miscellaneous expenses,28/11/2012,2065009,3.00,Revenue income and expenditure,Land Registry,0,,JN,201208,RB03,P3,
,,,,,,,,,,"834,505.02",,,,,,,,,
